{"text_format":"1","workbook":"xlsx","n_sheets":7,"sheets":["Foglio1","Foglio2","Foglio2 (4)","Foglio2 (3)","Foglio3","Foglio5","Foglio4"],"not_rendered":{"charts":0,"images":4,"macros":1,"external_links":0,"defined_names":4,"comments":0,"pivot_tables":0},"unopened":[],"bounds":{"document_bytes":16777216,"sheet_cells":100000,"rows_first":2000,"rows_last":500,"rows_between":2000,"halvings":0,"cell_chars":16384,"cell_head_chars":4096},"cells_cut":0,"cells_raw":0,"read":"whole","date_system":"1900"}

{"sheet":"Foglio1","index":0,"n_rows":1,"n_cols":2,"rows_kept":1,"cut":false,"hidden":false,"merged":[[0,1,0,12]]}
[null,"COSTI SERVIZI UNEP DI SASSARI "]

{"sheet":"Foglio2","index":1,"n_rows":80,"n_cols":18,"rows_kept":80,"cut":false,"hidden":false,"merged":[[0,10,0,11],[28,0,28,10],[30,2,30,10],[47,0,47,1],[48,0,48,1],[0,0,0,1],[39,0,39,2],[4,0,4,1],[13,0,13,1],[14,0,14,1],[31,0,31,1],[32,0,32,1],[46,0,46,1],[69,0,69,1],[45,0,45,1],[52,3,52,14],[68,0,68,1],[63,0,63,1],[49,0,49,1],[66,0,66,1],[65,0,65,1],[67,0,67,1],[53,3,53,14],[80,0,80,11],[79,0,79,11],[56,0,56,1],[78,0,78,11],[57,0,57,1],[58,0,58,1],[59,0,59,1],[74,0,74,1],[60,0,60,1],[61,0,61,1],[62,0,62,1],[76,0,76,11],[64,0,64,1],[71,0,71,1],[77,0,77,11],[70,0,70,1]]}
["SPECIFICA NOTIFICHE ",null,null,"    SELEZIONARE NELLE CELLE  INDICATE DALLE FRECCE                                   ",null,null,"SPECIFICA NORMALE",null,"SPECIFICA  URGENTE",null,"Ritorna alla pagina inziale"]
[]
[null,null,null,"❶ Inserire nella cella sottostante indicata dalla freccia  il numero dei destinatari dell'atto"]
[]
["DIRITTI* ①",null,null,0,null,null,{"$f":"IF(D5>0,D5<=2)*2.58+AND(D5>=3,D5<=6)*7.75+AND(D5>6)*12.39","v":0},null,{"$f":"IF(D5>0,D5<=2)*3.87+AND(D5>=3,D5<=6)*11.63+AND(D5>6)*18.59","v":0}]
[]
[]
[]
[null,null,null,"❷ Inserire nelle celle sottostanti indicate dalle frecce il nome delle vie che interessano (solo il nome senza via, viale, corso etc)  e selezionarle dal menù a"]
[null,null,null," tendina a destra della riga. Per facilitare la ricerca inserire le inziali della via (es. per via roma inserire la lettera R), aprendo il menù a tendina "]
[null,null,null,"appariranno in ordine alfabetico tutte le vie che iniziano con la lettera R."]
[null,null,null,"Per le vie che si compongono di nome e cognome, effettuare la ricerca partendo dal cognome.",null,null,null,"*Per evitare errori selezionare sempre dal menù a tendina."]
[]
["TRASFERTE* ②"]
["Vie di Sassari"]
[null,"1°",null,null,{"$f":"LOOKUP(D16,Foglio3!B2:B1104,Foglio3!C2:C1104)","v":{"$error":"#N/A"}},null,{"$f":"IF(E16>0,E16<=6)*3.7+AND(E16>=7,E16<=12)*6.75+AND(E16>=13,E16<=21)*9.33+AND(E16>=22,E16<=27)*11.3+AND(E16>=28,E16<=33)*13.27+AND(E16>=34,E16<=39)*15.24+AND(E16>=40,E16<=45)*17.21+AND(E16>=46,E16<=51)*19.18+AND(E16>=52,E16<=57)*21.15+AND(E16>=58,E16<=63)*23.12+AND(E16>=64,E16<=69)*25.09+AND(E16>=70,E16<=75)*27.06+AND(E16>=76,E16<=81)*29.03+AND(E16>=82,E16<=87)*31+AND(E16>=88,E16<=93)*32.97+AND(E16>=94,E16<=99)*34.94+AND(E16>=100,E16<=105)*36.91+AND(E16>=106,E16<=111)*38.88","v":{"$error":"#N/A"}},null,{"$f":"IF(E16>0,E16<=6)*5.55+AND(E16>=7,E16<=12)*10.13+AND(E16>=13,E16<=21)*14+AND(E16>=22,E16<=27)*16.95+AND(E16>=28,E16<=33)*19.91+AND(E16>=34,E16<=39)*22.86+AND(E16>=40,E16<=45)*25.82+AND(E16>=46,E16<=51)*28.77+AND(E16>=52,E16<=57)*31.73+AND(E16>=58,E16<=63)*34.68+AND(E16>=64,E16<=69)*37.64+AND(E16>=70,E16<=75)*40.59+AND(E16>=76,E16<=81)*43.55+AND(E16>=82,E16<=87)*46.5+AND(E16>=88,E16<=93)*49.46+AND(E16>=94,E16<=99)*52.41+AND(E16>=100,E16<=105)*55.37+AND(E16>=106,E16<=111)*58.32","v":{"$error":"#N/A"}},null,null,null,null,null,null,null,{"$f":"IF(G16>0,7.05)","v":{"$error":"#N/A"}},{"$f":"IF(I16>0,7.05)","v":{"$error":"#N/A"}}]
[null,"2°",null,null,{"$f":"LOOKUP(D17,Foglio3!B2:B1104,Foglio3!C2:C1104)","v":{"$error":"#N/A"}},null,{"$f":"IF(E17>0,E17<=6)*3.7+AND(E17>=7,E17<=12)*6.75+AND(E17>=13,E17<=21)*9.33+AND(E17>=22,E17<=27)*11.3+AND(E17>=28,E17<=33)*13.27+AND(E17>=34,E17<=39)*15.24+AND(E17>=40,E17<=45)*17.21+AND(E17>=46,E17<=51)*19.18+AND(E17>=52,E17<=57)*21.15+AND(E17>=58,E17<=63)*23.12+AND(E17>=64,E17<=69)*25.09+AND(E17>=70,E17<=75)*27.06+AND(E17>=76,E17<=81)*29.03+AND(E17>=82,E17<=87)*31+AND(E17>=88,E17<=93)*32.97+AND(E17>=94,E17<=99)*34.94+AND(E17>=100,E17<=105)*36.91+AND(E17>=106,E17<=111)*38.88","v":{"$error":"#N/A"}},null,{"$f":"IF(E17>0,E17<=6)*5.55+AND(E17>=7,E17<=12)*10.13+AND(E17>=13,E17<=21)*14+AND(E17>=22,E17<=27)*16.95+AND(E17>=28,E17<=33)*19.91+AND(E17>=34,E17<=39)*22.86+AND(E17>=40,E17<=45)*25.82+AND(E17>=46,E17<=51)*28.77+AND(E17>=52,E17<=57)*31.73+AND(E17>=58,E17<=63)*34.68+AND(E17>=64,E17<=69)*37.64+AND(E17>=70,E17<=75)*40.59+AND(E17>=76,E17<=81)*43.55+AND(E17>=82,E17<=87)*46.5+AND(E17>=88,E17<=93)*49.46+AND(E17>=94,E17<=99)*52.41+AND(E17>=100,E17<=105)*55.37+AND(E17>=106,E17<=111)*58.32","v":{"$error":"#N/A"}},null,null,null,null,null,null,null,{"$error":"#N/A"},{"$error":"#N/A"}]
[null,"3°",null,null,{"$f":"LOOKUP(D18,Foglio3!B2:B1104,Foglio3!C2:C1104)","v":{"$error":"#N/A"}},null,{"$error":"#N/A"},null,{"$error":"#N/A"},null,null,null,null,null,null,null,{"$error":"#N/A"},{"$error":"#N/A"}]
[null,"4°",null,null,{"$f":"LOOKUP(D19,Foglio3!B2:B1104,Foglio3!C2:C1104)","v":{"$error":"#N/A"}},null,{"$error":"#N/A"},null,{"$error":"#N/A"},null,null,null,null,null,null,null,{"$error":"#N/A"},{"$error":"#N/A"}]
[null,"5°",null,null,{"$f":"LOOKUP(D20,Foglio3!B2:B1104,Foglio3!C2:C1104)","v":{"$error":"#N/A"}},null,{"$error":"#N/A"},null,{"$error":"#N/A"},null,null,null,null,null,null,null,{"$error":"#N/A"},{"$error":"#N/A"}]
[null,"6°",null,null,{"$f":"LOOKUP(D21,Foglio3!B2:B1104,Foglio3!C2:C1104)","v":{"$error":"#N/A"}},null,{"$error":"#N/A"},null,{"$error":"#N/A"},null,null,null,null,null,null,null,{"$error":"#N/A"},{"$error":"#N/A"}]
[null,"7°",null,null,{"$f":"LOOKUP(D22,Foglio3!B2:B1104,Foglio3!C2:C1104)","v":{"$error":"#N/A"}},null,{"$error":"#N/A"},null,{"$error":"#N/A"},null,null,null,null,null,null,null,{"$error":"#N/A"},{"$error":"#N/A"}]
[null,"8°",null,null,{"$f":"LOOKUP(D23,Foglio3!B2:B1104,Foglio3!C2:C1104)","v":{"$error":"#N/A"}},null,{"$error":"#N/A"},null,{"$error":"#N/A"},null,null,null,null,null,null,null,{"$error":"#N/A"},{"$error":"#N/A"}]
[null,"9°",null,null,{"$f":"LOOKUP(D24,Foglio3!B2:B1104,Foglio3!C2:C1104)","v":{"$error":"#N/A"}},null,{"$error":"#N/A"},null,{"$error":"#N/A"},null,null,null,null,null,null,null,{"$error":"#N/A"},{"$error":"#N/A"}]
[null,"10°",null,null,{"$f":"LOOKUP(D25,Foglio3!B2:B1104,Foglio3!C2:C1104)","v":{"$error":"#N/A"}},null,{"$error":"#N/A"},null,{"$error":"#N/A"},null,null,null,null,null,null,null,{"$error":"#N/A"},{"$error":"#N/A"}]
[]
[]
[]
[]
[]
[null,null,"                     ❸ Inserire nelle celle sottostanti  direttamente il nome del comune che interessa e selezionarlo dal  menù a tendina a destra di ogni riga ."]
["TRASFERTE*  ③",null,"                          ","**Per evitare errori selezionare sempre dal menù a tendina."]
[" COMUNI del Circondario"]
[null,"1°",null,null,{"$f":"LOOKUP(D34,Foglio4!B3:B59,Foglio4!E3:E59)","v":{"$error":"#N/A"}},null,{"$f":"IF(E34=20,\"9,33\")+IF(AND(E34>=22,E34<=27),\"11,30\")+IF(E34=32,\"13,27\")+IF(E34=34,\"15,24\")+IF(AND(E34>=40,E34<=45),17.21)+IF(E34=46,\"19,18\")+IF(E34=56,\"21,15\")+IF(AND(E34>=58,E34<=63),23.12)+IF(AND(E34>=64,E34<=69),25.09)+IF(AND(E34>=70,E34<=75),27.06)+IF(AND(E34>=76,E34<=81),29.03)+IF(AND(E34>=82,E34<=87),31)+IF(AND(E34>=88,E34<=93),32.97)+IF(AND(E34>=94,E34<=99),34.94)+IF(AND(E34>=100,E34<=105),36.91)+IF(E34=106,\"38,88\")+IF(E34=114,\"40,85\")+IF(E34=126,\"44,79\")+IF(E34=152,\"52,67\")+IF(E34=172,\"60,55\")+IF(E34=216,\"74,34\")","v":{"$error":"#N/A"}},null,{"$f":"IF(E34=20,\"14,00\")+IF(AND(E34>=22,E34<=27),\"16,95\")+IF(E34=32,\"19,91\")+IF(E34=34,\"22,86\")+IF(AND(E34>=40,E34<=45),25.82)+IF(E34=46,\"28,77\")+IF(E34=56,\"31,73\")+IF(AND(E34>=58,E34<=63),34.68)+IF(AND(E34>=64,E34<=69),37.64)+IF(AND(E34>=70,E34<=75),40.59)+IF(AND(E34>=76,E34<=81),43.55)+IF(AND(E34>=82,E34<=87),46.5)+IF(AND(E34>=88,E34<=93),49.46)+IF(AND(E34>=94,E34<=99),52.41)+IF(AND(E34>=100,E34<=105),55.37)+IF(E34=106,\"58,32\")+IF(E34=114,\"61,28\")+IF(E34=126,\"67,19\")+IF(E34=152,\"79,01\")+IF(E34=172,\"90,83\")+IF(E34=216,\"111,51\")","v":{"$error":"#N/A"}},null,null,null,null,null,null,null,{"$f":"IF(G34>0,7.05)","v":{"$error":"#N/A"}},{"$f":"IF(I34>0,7.05)","v":{"$error":"#N/A"}}]
[null,"2°",null,null,{"$f":"LOOKUP(D35,Foglio4!B3:B59,Foglio4!E3:E59)","v":{"$error":"#N/A"}},null,{"$f":"IF(E35=20,\"9,33\")+IF(AND(E35>=22,E35<=27),\"11,30\")+IF(E35=32,\"13,27\")+IF(E35=34,\"15,24\")+IF(AND(E35>=40,E35<=45),17.21)+IF(E35=46,\"19,18\")+IF(E35=56,\"21,15\")+IF(AND(E35>=58,E35<=63),23.12)+IF(AND(E35>=64,E35<=69),25.09)+IF(AND(E35>=70,E35<=75),27.06)+IF(AND(E35>=76,E35<=81),29.03)+IF(AND(E35>=82,E35<=87),31)+IF(AND(E35>=88,E35<=93),32.97)+IF(AND(E35>=94,E35<=99),34.94)+IF(AND(E35>=100,E35<=105),36.91)+IF(E35=106,\"38,88\")+IF(E35=114,\"40,85\")+IF(E35=126,\"44,79\")+IF(E35=152,\"52,67\")+IF(E35=172,\"60,55\")+IF(E35=216,\"74,34\")","v":{"$error":"#N/A"}},null,{"$f":"IF(E35=20,\"14,00\")+IF(AND(E35>=22,E35<=27),\"16,95\")+IF(E35=32,\"19,91\")+IF(E35=34,\"22,86\")+IF(AND(E35>=40,E35<=45),25.82)+IF(E35=46,\"28,77\")+IF(E35=56,\"31,73\")+IF(AND(E35>=58,E35<=63),34.68)+IF(AND(E35>=64,E35<=69),37.64)+IF(AND(E35>=70,E35<=75),40.59)+IF(AND(E35>=76,E35<=81),43.55)+IF(AND(E35>=82,E35<=87),46.5)+IF(AND(E35>=88,E35<=93),49.46)+IF(AND(E35>=94,E35<=99),52.41)+IF(AND(E35>=100,E35<=105),55.37)+IF(E35=106,\"58,32\")+IF(E35=114,\"61,28\")+IF(E35=126,\"67,19\")+IF(E35=152,\"79,01\")+IF(E35=172,\"90,83\")+IF(E35=216,\"111,51\")","v":{"$error":"#N/A"}},null,null,null,null,null,null,null,{"$f":"IF(G35>0,7.05)","v":{"$error":"#N/A"}},{"$f":"IF(I35>0,7.05)","v":{"$error":"#N/A"}}]
[null,"3°",null,null,{"$f":"LOOKUP(D36,Foglio4!B3:B59,Foglio4!E3:E59)","v":{"$error":"#N/A"}},null,{"$error":"#N/A"},null,{"$error":"#N/A"},null,null,null,null,null,null,null,{"$f":"IF(G36>0,7.05)","v":{"$error":"#N/A"}},{"$f":"IF(I36>0,7.05)","v":{"$error":"#N/A"}}]
[null,"4°",null,null,{"$f":"LOOKUP(D37,Foglio4!B3:B59,Foglio4!E3:E59)","v":{"$error":"#N/A"}},null,{"$error":"#N/A"},null,{"$error":"#N/A"},null,null,null,null,null,null,null,{"$f":"IF(G37>0,7.05)","v":{"$error":"#N/A"}},{"$f":"IF(I37>0,7.05)","v":{"$error":"#N/A"}}]
[null,"5°",null,null,{"$f":"LOOKUP(D38,Foglio4!B3:B59,Foglio4!E3:E59)","v":{"$error":"#N/A"}},null,{"$error":"#N/A"},null,{"$error":"#N/A"},null,null,null,null,null,null,null,{"$f":"IF(G38>0,7.05)","v":{"$error":"#N/A"}},{"$f":"IF(I38>0,7.05)","v":{"$error":"#N/A"}}]
[]
[null,null,null,"10% TOT. TRASFERTE",null,null,{"$f":"SUMIF(G16:G38,\"<>#N/D\")*10%","v":0},null,{"$f":"SUMIF(I16:I38,\"<>#N/D\")*10%","v":0}]
[]
[null,null,null,"140  C.P.C.",null,null,{"$f":"SUMIF(Q16:Q38,\"<>#N/D\")","v":0},null,{"$f":"SUMIF(R16:R38,\"<>#N/D\")","v":0}]
[]
[null,null,null,"❹ Inserire nelle celle sottostanti il numero dei postali  a seconda del peso calcolato in grammi."]
[]
["ATTI POSTALI IN ITALIA*④"]
["         fino a 20 g",null,null,null,null,null,{"$f":"11.95*D47","v":0},null,{"$f":"11.95*D47","v":0}]
["     da 21 g  a 100 g",null,null,null,null,null,{"$f":"13.28*D48","v":0},null,{"$f":"13.28*D48","v":0}]
["        da 101 g  a 350 g",null,null,null,null,null,{"$f":"14.42*D49","v":0},null,{"$f":"14.42*D49","v":0}]
["        da 351 g  a 2000 g",null,null,null,null,null,{"$f":"15.93*D50","v":0},null,{"$f":"15.93*D50","v":0}]
[]
[]
[]
[null,null,"  ","❺ Inserire  nelle celle sottostanti indicate dalle frecce il numero dei postali esteri secondo il peso dell'atto da inviare e la zona di destinazione."]
[null,null,null,"        Per conoscere le zone tariffarie internazionali cliccare sul pulsante presente a destra. "]
[]
["   ATTI POSTALI ALL' ESTERO* ⑤"]
["     Zona 1                   fino a 20 g",null,null,null,null,null,{"$f":"8.7*D58","v":0},null,{"$f":"8.7*D58","v":0}]
["           \"                    da   21 g a 50 g",null,null,null,null,null,{"$f":"11.25*D59","v":0},null,{"$f":"11.25*D59","v":0}]
["           \"                    da  51 g a 100 g",null,null,null,null,null,{"$f":"12.4*D60","v":0},null,{"$f":"12.4*D60","v":0}]
["           \"                   da 101 g a 250 g",null,null,null,null,null,{"$f":"14.75*D61","v":0},null,{"$f":"14.75*D61","v":0}]
["S. Marino/Vatic.    fino a 20 g",null,null,null,null,null,{"$f":"6.85*D62","v":0},null,{"$f":"6.85*D62","v":0}]
["             \"                  da 21 g a 50 g",null,null,null,null,null,{"$f":"8.5*D63","v":0},null,{"$f":"8.5*D63","v":0}]
["             \"                  da 50  g a 100 g",null,null,null,null,null,{"$f":"9.05*D64","v":0},null,{"$f":"9.05*D64","v":0},null,null,null,null,null,null,null,8]
["     Zona 2                   fino a 20 g",null,null,null,null,null,{"$f":"10.1*D65","v":0},null,{"$f":"10.1*D65","v":0}]
["           \"                    da   21 g a 50 g",null,null,null,null,null,{"$f":"12.7*D66","v":0},null,{"$f":"12.7*D66","v":0},null,null,null,null,null,null,null,{"$f":"Q64+0.8","v":8.8000000000000007}]
["           \"                    da  51 g a 100 g",null,null,null,null,null,{"$f":"13.95*D67","v":0},null,{"$f":"13.95*D67","v":0}]
["           \"                   da 101 g a 250 g",null,null,null,null,null,{"$f":"18.8*D68","v":0},null,{"$f":"18.8*D68","v":0}]
["     Zona 3                   fino a 20 g",null,null,null,null,null,{"$f":"10.75*D69","v":0},null,{"$f":"10.75*D69","v":0}]
["           \"                    da   21 g a 50 g",null,null,null,null,null,{"$f":"13.85*D70","v":0},null,{"$f":"13.85*D70","v":0}]
["           \"                    da  51 g a 100 g",null,null,null,null,null,{"$f":"15.6*D71","v":0},null,{"$f":"15.6*D71","v":0}]
["           \"                   da 101 g a 250 g",null,null,null,null,null,{"$f":"20.35*D72","v":0},null,{"$f":"20.35*D72","v":0}]
[]
[null,null,null,"TOTALE SPECIFICA* ⑥",null,null,{"$f":"SUMIF(G3:G72,\"<>#N/D\")","v":0},null,{"$f":"SUMIF(I3:I72,\"<>#N/D\")","v":0}]
[null,null,null,null,null,null,"senza urgenza",null,"urgente"]
[]
["❻ Il totale della specifica è comprensivo delle spese postali (€7,05) per eventuali notifiche ai sensi dell'art. 140 c.p.c. Le somme residue potranno essere richieste dagli studi legali"]
["       entro 30 giorni dall'espletamento dell'atto, successivamente a tale data saranno devolute all'erario  giusto  DPR 1229/1959 e art. 197 DPR 2002 n. 115"]
[]
["❻ Il totale della specifica può variare per ulteriori km effettivamente percorsi."]

{"sheet":"Foglio2 (4)","index":2,"n_rows":88,"n_cols":13,"rows_kept":88,"cut":false,"hidden":false,"merged":[[10,0,10,1],[0,0,0,1],[0,12,0,13],[1,0,2,2],[3,0,3,1],[7,0,8,2],[55,0,55,1],[11,0,11,1],[20,0,20,1],[21,0,21,1],[35,0,35,10],[38,0,38,1],[39,0,39,1],[46,0,46,2],[52,0,52,1],[53,0,53,1],[54,0,54,1],[37,2,37,13],[72,0,72,1],[56,0,56,1],[59,3,59,15],[63,0,63,1],[64,0,64,1],[65,0,65,1],[66,0,66,1],[67,0,67,1],[68,0,68,1],[69,0,69,1],[70,0,70,1],[71,0,71,1],[88,0,88,12],[73,0,73,1],[74,0,74,1],[75,0,75,1],[76,0,76,1],[77,0,77,1],[78,0,78,1],[81,0,81,1],[85,0,85,12],[86,0,86,12],[87,0,87,12],[84,0,84,14]]}
["SPECIFICA  ESECUZIONI",null,null,"    SELEZIONARE NELLE CELLE  INDICATE DALLE FRECCE NELLA PROCEDURA ESECUTIVA CHE INTERESSA                                   ",null,null,"SPECIFICA NORMALE",null,"SPECIFICA  URGENTE",null,null,null,"   Ritorna alla pagina iniziale"]
["Pignoramento presso terzi"]
[null,null,null,"❶ Inserire  nella cella sottostante indicata dalla freccia  l'importo del precetto "]
["DIRITTI  ①",null,null,null,null,null,{"$f":"IF(D4>0,D4<=516.46)*2.58+AND(D4>=516.47,D4<=2582.28)*3.62+AND(D4>=2582.29)*6.71","v":0},null,{"$f":"IF(D4>0,D4<=516.46)*3.87+AND(D4>=516.47,D4<=2582.28)*5.43+AND(D4>=2582.29)*10.07","v":0}]
[]
[]
[]
["Pignoramento immobiliare                              Preavviso di rilascio ex art. 608 c.p.c."]
[]
[null,null,null,"❶ Inserire nella prima  cella  indicata dalle frecce  l'importo  di € 6,71. Per queste esecuzioni l'importo è fissato per legge (€6,71 o, se urgente, €10,07)"]
[]
["DIRITTI  ①",null,null,null,null,null,6.71,null,{"$f":"IF(G12>0,G12=6.71)*10.07","v":10.07}]
[]
[]
[]
[]
[null,null,null,"❷ Inserire nelle celle sottostanti indicate dalle frecce il nome delle vie che interessano (solo il nome, senza via, viale, corso etc)  e selezionarle dal menù a"]
[null,null,null,"a tendina a destra della riga. Per facilitare la ricerca inserire le inziali della via (es. per via roma inserire la lettera R), aprendo il menù a tendina appariranno"]
[null,null,null," in ordine alfabetico tutte le vie che iniziano con la lettera R.   Per le vie con nome e cognome, effettuare la ricerca partendo dal cognome."]
[null,null,null,"**Per evitare errori selezionare sempre dal menù a tendina."]
["TRASFERTE* ②"]
["Vie di Sassari"]
[null,"1°",null,null,{"$f":"LOOKUP(D23,Foglio3!B2:B1104,Foglio3!C2:C1104)","v":{"$error":"#N/A"}},null,{"$f":"IF(E23>0,E23<=6)*7.4+AND(E23>=7,E23<=12)*13.5+AND(E23>=13,E23<=21)*18.66+AND(E23>=22,E23<=27)*22.6+AND(E23>=28,E23<=33)*26.54+AND(E23>=34,E23<=39)*30.48+AND(E23>=40,E23<=45)*34.42+AND(E23>=46,E23<=51)*38.36+AND(E23>=52,E23<=57)*42.3+AND(E23>=58,E23<=63)*46.24+AND(E23>=64,E23<=69)*50.18+AND(E23>=70,E23<=75)*54.12+AND(E23>=76,E23<=81)*58.06+AND(E23>=82,E23<=87)*62+AND(E23>=88,E23<=93)*65.94+AND(E23>=94,E23<=99)*69.88+AND(E23>=100,E23<=105)*73.82+AND(E23>=106,E23<=111)*77.76","v":{"$error":"#N/A"}},null,{"$f":"IF(E23>0,E23<=6)*11.1+AND(E23>=7,E23<=12)*20.25+AND(E23>=13,E23<=21)*27.99+AND(E23>=22,E23<=27)*33.9+AND(E23>=28,E23<=33)*39.81+AND(E23>=34,E23<=39)*45.72+AND(E23>=40,E23<=45)*51.63+AND(E23>=46,E23<=51)*57.54+AND(E23>=52,E23<=57)*63.45+AND(E23>=58,E23<=63)*69.36+AND(E23>=64,E23<=69)*75.27+AND(E23>=70,E23<=75)*81.18+AND(E23>=76,E23<=81)*87.09+AND(E23>=82,E23<=87)*93+AND(E23>=88,E23<=93)*98.91+AND(E23>=94,E23<=99)*104.82+AND(E23>=100,E23<=105)*110.73+AND(E23>=106,E23<=111)*116.64","v":{"$error":"#N/A"}},{"$f":"IF(G23>0,6.8)","v":{"$error":"#N/A"}},{"$f":"IF(I23>0,6.8)","v":{"$error":"#N/A"}}]
[null,"2°",null,null,{"$f":"LOOKUP(D24,Foglio3!B2:B1104,Foglio3!C2:C1104)","v":{"$error":"#N/A"}},null,{"$f":"IF(E24>0,E24<=6)*7.4+AND(E24>=7,E24<=12)*13.5+AND(E24>=13,E24<=21)*18.66+AND(E24>=22,E24<=27)*22.6+AND(E24>=28,E24<=33)*26.54+AND(E24>=34,E24<=39)*30.48+AND(E24>=40,E24<=45)*34.42+AND(E24>=46,E24<=51)*38.36+AND(E24>=52,E24<=57)*42.3+AND(E24>=58,E24<=63)*46.24+AND(E24>=64,E24<=69)*50.18+AND(E24>=70,E24<=75)*54.12+AND(E24>=76,E24<=81)*58.06+AND(E24>=82,E24<=87)*62+AND(E24>=88,E24<=93)*65.94+AND(E24>=94,E24<=99)*69.88+AND(E24>=100,E24<=105)*73.82+AND(E24>=106,E24<=111)*77.76","v":{"$error":"#N/A"}},null,{"$f":"IF(E24>0,E24<=6)*11.1+AND(E24>=7,E24<=12)*20.25+AND(E24>=13,E24<=21)*27.99+AND(E24>=22,E24<=27)*33.9+AND(E24>=28,E24<=33)*39.81+AND(E24>=34,E24<=39)*45.72+AND(E24>=40,E24<=45)*51.63+AND(E24>=46,E24<=51)*57.54+AND(E24>=52,E24<=57)*63.45+AND(E24>=58,E24<=63)*69.36+AND(E24>=64,E24<=69)*75.27+AND(E24>=70,E24<=75)*81.18+AND(E24>=76,E24<=81)*87.09+AND(E24>=82,E24<=87)*93+AND(E24>=88,E24<=93)*98.91+AND(E24>=94,E24<=99)*104.82+AND(E24>=100,E24<=105)*110.73+AND(E24>=106,E24<=111)*116.64","v":{"$error":"#N/A"}},{"$error":"#N/A"},{"$f":"IF(I24>0,6.8)","v":{"$error":"#N/A"}}]
[null,"3°",null,null,{"$f":"LOOKUP(D25,Foglio3!B2:B1104,Foglio3!C2:C1104)","v":{"$error":"#N/A"}},null,{"$error":"#N/A"},null,{"$error":"#N/A"},{"$error":"#N/A"},{"$error":"#N/A"}]
[null,"4°",null,null,{"$f":"LOOKUP(D26,Foglio3!B2:B1104,Foglio3!C2:C1104)","v":{"$error":"#N/A"}},null,{"$error":"#N/A"},null,{"$error":"#N/A"},{"$error":"#N/A"},{"$error":"#N/A"}]
[null,"5°",null,null,{"$f":"LOOKUP(D27,Foglio3!B2:B1104,Foglio3!C2:C1104)","v":{"$error":"#N/A"}},null,{"$error":"#N/A"},null,{"$error":"#N/A"},{"$error":"#N/A"},{"$error":"#N/A"}]
[null,"6°",null,null,{"$f":"LOOKUP(D28,Foglio3!B2:B1104,Foglio3!C2:C1104)","v":{"$error":"#N/A"}},null,{"$error":"#N/A"},null,{"$error":"#N/A"},{"$error":"#N/A"},{"$error":"#N/A"}]
[null,"7°",null,null,{"$f":"LOOKUP(D29,Foglio3!B2:B1104,Foglio3!C2:C1104)","v":{"$error":"#N/A"}},null,{"$error":"#N/A"},null,{"$error":"#N/A"},{"$error":"#N/A"},{"$error":"#N/A"}]
[null,"8°",null,null,{"$f":"LOOKUP(D30,Foglio3!B2:B1104,Foglio3!C2:C1104)","v":{"$error":"#N/A"}},null,{"$error":"#N/A"},null,{"$error":"#N/A"},{"$error":"#N/A"},{"$error":"#N/A"}]
[null,"9°",null,null,{"$f":"LOOKUP(D31,Foglio3!B2:B1104,Foglio3!C2:C1104)","v":{"$error":"#N/A"}},null,{"$error":"#N/A"},null,{"$error":"#N/A"},{"$error":"#N/A"},{"$error":"#N/A"}]
[null,"10°",null,null,{"$f":"LOOKUP(D32,Foglio3!B2:B1104,Foglio3!C2:C1104)","v":{"$error":"#N/A"}},null,{"$error":"#N/A"},null,{"$error":"#N/A"},{"$error":"#N/A"},{"$error":"#N/A"}]
[]
[]
[]
[]
[]
[null,null,"                     ❸ Inserire nelle celle sottostanti  direttamente il nome del comune che interessa o cercarlo nel menù a tendina a destra di ogni riga"]
["TRASFERTE*  ③",null,null,"**Per evitare errori selezionare sempre dal menù a tendina."]
[" COMUNI del Circondario"]
[null,"1°",null,null,{"$f":"LOOKUP(D41,Foglio4!B3:B59,Foglio4!E3:E59)","v":{"$error":"#N/A"}},null,{"$f":"IF(E41=20,\"18,66\")+IF(AND(E41>=22,E41<=27),\"22,60\")+IF(E41=32,\"26,54\")+IF(E41=34,\"30,48\")+IF(AND(E41>=40,E41<=45),34.42)+IF(E41=46,\"38,36\")+IF(E41=56,\"42,30\")+IF(AND(E41>=58,E41<=63),46.24)+IF(AND(E41>=64,E41<=69),50.18)+IF(AND(E41>=70,E41<=75),54.12)+IF(AND(E41>=76,E41<=81),58.06)+IF(AND(E41>=82,E41<=87),62)+IF(AND(E41>=88,E41<=93),65.94)+IF(AND(E41>=94,E41<=99),69.88)+IF(AND(E41>=100,E41<=105),73.82)+IF(E41=106,\"77,76\")+IF(E41=114,\"81,70\")+IF(E41=126,\"89,58\")+IF(E41=152,\"105,34\")+IF(E41=172,\"121,10\")+IF(E41=216,\"148,68\")","v":{"$error":"#N/A"}},null,{"$f":"IF(E41=20,\"27,99\")+IF(AND(E41>=22,E41<=27),\"33,90\")+IF(E41=32,\"39,81\")+IF(E41=34,\"45,72\")+IF(AND(E41>=40,E41<=45),51.63)+IF(E41=46,\"57,54\")+IF(E41=56,\"63,45\")+IF(AND(E41>=58,E41<=63),69.36)+IF(AND(E41>=64,E41<=69),75.27)+IF(AND(E41>=70,E41<=75),81.18)+IF(AND(E41>=76,E41<=81),87.09)+IF(AND(E41>=82,E41<=87),93)+IF(AND(E41>=88,E41<=93),98.91)+IF(AND(E41>=94,E41<=99),104.82)+IF(AND(E41>=100,E41<=105),110.73)+IF(E41=106,\"116,64\")+IF(E41=114,\"122,55\")+IF(E41=126,\"134,37\")+IF(E41=152,\"158,01\")+IF(E41=172,\"181,65\")+IF(E41=216,\"223,02\")","v":{"$error":"#N/A"}},{"$f":"IF(G41>0,6.8)","v":{"$error":"#N/A"}},{"$f":"IF(I41>0,6.8)","v":{"$error":"#N/A"}}]
[null,"2°",null,null,{"$f":"LOOKUP(D42,Foglio4!B3:B59,Foglio4!E3:E59)","v":{"$error":"#N/A"}},null,{"$f":"IF(E42=20,\"18,66\")+IF(AND(E42>=22,E42<=27),\"22,60\")+IF(E42=32,\"26,54\")+IF(E42=34,\"30,48\")+IF(AND(E42>=40,E42<=45),34.42)+IF(E42=46,\"38,36\")+IF(E42=56,\"42,30\")+IF(AND(E42>=58,E42<=63),46.24)+IF(AND(E42>=64,E42<=69),50.18)+IF(AND(E42>=70,E42<=75),54.12)+IF(AND(E42>=76,E42<=81),58.06)+IF(AND(E42>=82,E42<=87),62)+IF(AND(E42>=88,E42<=93),65.94)+IF(AND(E42>=94,E42<=99),69.88)+IF(AND(E42>=100,E42<=105),73.82)+IF(E42=106,\"77,76\")+IF(E42=114,\"81,70\")+IF(E42=126,\"89,58\")+IF(E42=152,\"105,34\")+IF(E42=172,\"121,10\")+IF(E42=216,\"148,68\")","v":{"$error":"#N/A"}},null,{"$f":"IF(E42=20,\"27,99\")+IF(AND(E42>=22,E42<=27),\"33,90\")+IF(E42=32,\"39,81\")+IF(E42=34,\"45,72\")+IF(AND(E42>=40,E42<=45),51.63)+IF(E42=46,\"57,54\")+IF(E42=56,\"63,45\")+IF(AND(E42>=58,E42<=63),69.36)+IF(AND(E42>=64,E42<=69),75.27)+IF(AND(E42>=70,E42<=75),81.18)+IF(AND(E42>=76,E42<=81),87.09)+IF(AND(E42>=82,E42<=87),93)+IF(AND(E42>=88,E42<=93),98.91)+IF(AND(E42>=94,E42<=99),104.82)+IF(AND(E42>=100,E42<=105),110.73)+IF(E42=106,\"116,64\")+IF(E42=114,\"122,55\")+IF(E42=126,\"134,37\")+IF(E42=152,\"158,01\")+IF(E42=172,\"181,65\")+IF(E42=216,\"223,02\")","v":{"$error":"#N/A"}},{"$f":"IF(G42>0,6.8)","v":{"$error":"#N/A"}},{"$f":"IF(I42>0,6.8)","v":{"$error":"#N/A"}}]
[null,"3°",null,null,{"$f":"LOOKUP(D43,Foglio4!B3:B59,Foglio4!E3:E59)","v":{"$error":"#N/A"}},null,{"$error":"#N/A"},null,{"$error":"#N/A"},{"$f":"IF(G43>0,6.8)","v":{"$error":"#N/A"}},{"$error":"#N/A"}]
[null,"4°",null,null,{"$f":"LOOKUP(D44,Foglio4!B3:B59,Foglio4!E3:E59)","v":{"$error":"#N/A"}},null,{"$error":"#N/A"},null,{"$error":"#N/A"},{"$f":"IF(G44>0,6.8)","v":{"$error":"#N/A"}},{"$error":"#N/A"}]
[null,"5°",null,null,{"$f":"LOOKUP(D45,Foglio4!B3:B59,Foglio4!E3:E59)","v":{"$error":"#N/A"}},null,{"$error":"#N/A"},null,{"$error":"#N/A"},{"$f":"IF(G45>0,6.8)","v":{"$error":"#N/A"}},{"$error":"#N/A"}]
[]
[null,null,null,"10% TOT. TRASFERTE",null,null,{"$f":"SUMIF(G23:G45,\"<>#N/D\")*10%","v":0},null,{"$f":"SUMIF(I23:I45,\"<>#N/D\")*10%","v":0}]
[]
[null,null,null,"140 c.p.c.",null,null,{"$f":"IF(G4>0,14.1)+IF(G4<0,0)+IF(G12>0,14.1)+IF(I4<0,0)","v":14.1},null,{"$f":"IF(I4>0,14.1)+IF(I4<0,0)+IF(I12>0,14.1)+IF(I12<0,0)","v":14.1}]
[]
[null,null,null,"❹ Inserire nelle celle sottostanti il numero dei postali  a seconda del peso calcolato in grammi."]
[]
["ATTI POSTALI IN ITALIA*④"]
["         fino a 20 g",null,null,null,null,null,{"$f":"11.95*D54","v":0},null,{"$f":"11.95*D54","v":0}]
["     da 21 g  a 100 g",null,null,null,null,null,{"$f":"13.28*D55","v":0},null,{"$f":"13.28*D55","v":0}]
["        da 101 g  a 350 g",null,null,null,null,null,{"$f":"14.42*D56","v":0},null,{"$f":"14.42*D56","v":0}]
["        da 351 g  a 2000 g",null,null,null,null,null,{"$f":"15.93*D57","v":0},null,{"$f":"15.93*D57","v":0}]
[]
[]
[null,null,null,"❺ Inserire nelle celle sottostanti il numero dei postali esteri secondo il peso dell'atto da inviare e la zona di destinazione."]
[null,null,"  ","        Per conoscere le zone tariffarie internazionali cliccare sul pulsante presente a destra "]
[]
[]
["   ATTI POSTALI ALL' ESTERO* ⑤"]
["     Zona 1                   fino a 20 g",null,null,null,null,null,{"$f":"8.7*D65","v":0},null,{"$f":"8.7*D65","v":0}]
["           \"                    da   21 g a 50 g",null,null,null,null,null,{"$f":"11.25*D66","v":0},null,{"$f":"11.25*D66","v":0}]
["           \"                    da  51 g a 100 g",null,null,null,null,null,{"$f":"12.4*D67","v":0},null,{"$f":"12.4*D67","v":0}]
["           \"                   da 101 g a 250 g",null,null,null,null,null,{"$f":"14.75*D68","v":0},null,{"$f":"14.75*D68","v":0}]
["S. Marino/Vatic.    fino a 20 g",null,null,null,null,null,{"$f":"6.85*D69","v":0},null,{"$f":"6.85*D69","v":0}]
["             \"                  da 21 g a 50 g",null,null,null,null,null,{"$f":"8.5*D70","v":0},null,{"$f":"8.5*D70","v":0}]
["             \"                  da 50  g a 100 g",null,null,null,null,null,{"$f":"9.05*D71","v":0},null,{"$f":"9.05*D71","v":0}]
["     Zona 2                   fino a 20 g",null,null,null,null,null,{"$f":"10.1*D72","v":0},null,{"$f":"10.1*D72","v":0}]
["           \"                    da   21 g a 50 g",null,null,null,null,null,{"$f":"12.7*D73","v":0},null,{"$f":"12.7*D73","v":0}]
["           \"                    da  51 g a 100 g",null,null,null,null,null,{"$f":"13.95*D74","v":0},null,{"$f":"13.95*D74","v":0}]
["           \"                   da 101 g a 250 g",null,null,null,null,null,{"$f":"18.8*D75","v":0},null,{"$f":"18.8*D75","v":0}]
["     Zona 3                   fino a 20 g",null,null,null,null,null,{"$f":"10.75*D76","v":0},null,{"$f":"10.75*D76","v":0}]
["           \"                    da   21 g a 50 g",null,null,null,null,null,{"$f":"13.85*D77","v":0},null,{"$f":"13.85*D77","v":0}]
["           \"                    da  51 g a 100 g",null,null,null,null,null,{"$f":"15.6*D78","v":0},null,{"$f":"15.6*D78","v":0}]
["           \"                   da 101 g a 250 g",null,null,null,null,null,{"$f":"20.35*D79","v":0},null,{"$f":"20.35*D79","v":0}]
[]
[null,null,null,"TOTALE SPECIFICA* ⑥",null,null,{"$f":"SUMIF(G4:G79,\"<>#N/D\")","v":20.81},null,{"$f":"SUMIF(I4:I79,\"<>#N/D\")","v":24.17}]
[null,null,null,null,null,null,"senza urgenza",null,"urgente"]
[]
[]
["❻ Il totale della specifica è comprensivo di una somma forfettaria ( pari a € 7,05*2) per eventuali spese postali ai sensi dell'art.  140 c.p.c. Le somme residue potranno essere richieste dagli "]
["      studi legali  entro 30 giorni dall'espletamento dell'atto, successivamente a tale data saranno devolute all'erario  giusto  DPR 1229/1959 e art. 197 DPR 2002 n. 115"]
[]
["❻ Il totale della specifica può variare per ulteriori km effettivamente percorsi."]

{"sheet":"Foglio2 (3)","index":3,"n_rows":59,"n_cols":16,"rows_kept":59,"cut":false,"hidden":false,"merged":[[0,10,0,11],[10,0,10,1],[0,0,0,1],[1,0,2,2],[3,0,3,1],[7,0,8,2],[11,0,11,1],[19,0,19,1],[20,0,20,1],[34,0,34,10],[36,2,36,11],[37,0,37,1],[38,0,38,1],[45,0,45,2],[49,0,49,1],[59,0,59,11],[52,0,52,1],[55,0,55,11],[56,0,56,11],[57,0,57,11],[58,0,58,11]]}
["SPECIFICA  ESECUZIONI",null,null,"    SELEZIONARE NELLE CELLE  INDICATE DALLE FRECCE NELLA PROCEDURA ESECUTIVA CHE INTERESSA                                  ",null,null,"SPECIFICA NORMALE",null,"SPECIFICA  URGENTE",null,"   Ritorna alla pagina iniziale"]
["Pignoramento mobiliare presso il debitore"]
[null,null,null,"❶ Inserire  nella cella sottostante indicata dalla freccia  l'importo del precetto "]
["DIRITTI  ①",null,null,null,null,null,{"$f":"IF(D4>0,D4<=516.46)*2.58+AND(D4>=516.47,D4<=2582.28)*3.62+AND(D4>=2582.29)*6.71","v":0},null,{"$f":"IF(D4>0,D4<=516.46)*3.87+AND(D4>=516.47,D4<=2582.28)*5.43+AND(D4>=2582.29)*10.07","v":0}]
[]
[]
[]
["Esecuzione per  consegna e  rilascio          Esecuzione forzata obblighi di fare e non fare"]
[]
[null,null,null,"❶ Inserire nella prima  cella  indicata dalle frecce  l'importo  di € 6,71. Per queste esecuzioni l'importo è fissato per legge (€6,71 o, se urgente, €10,07)"]
[]
["DIRITTI  ①",null,null,null,null,null,6.71,null,{"$f":"IF(G12>0,G12=6.71)*10.07","v":10.07}]
[]
[]
[]
[null,null,null,"❷ Inserire nelle celle sottostanti indicate dalle frecce il nome delle vie che interessano (solo il nome senza via, viale, corso etc)  e selezionarle dal menù a"]
[null,null,null," tendina a destra della riga. Per facilitare la ricerca inserire le inziali della via (es. per via roma inserire la lettera R), aprendo il menù a tendina appariranno"]
[null,null,null," in ordine alfabetico tutte le vie che iniziano con la lettera R.   Per le vie con nome e cognome, effettuare la ricerca partendo dal cognome."]
[null,null,null,"**Per evitare errori selezionare sempre dal menù a tendina."]
["TRASFERTE* ②"]
["Vie di Sassari"]
[null,"1°",null,null,{"$f":"LOOKUP(D22,Foglio3!B2:B1104,Foglio3!C2:C1104)","v":{"$error":"#N/A"}},null,{"$f":"IF(E22>0,E22<=6)*7.4+AND(E22>=7,E22<=12)*13.5+AND(E22>=13,E22<=21)*18.66+AND(E22>=22,E22<=27)*22.6+AND(E22>=28,E22<=33)*26.54+AND(E22>=34,E22<=39)*30.48+AND(E22>=40,E22<=45)*34.42+AND(E22>=46,E22<=51)*38.36+AND(E22>=52,E22<=57)*42.3+AND(E22>=58,E22<=63)*46.24+AND(E22>=64,E22<=69)*50.18+AND(E22>=70,E22<=75)*54.12+AND(E22>=76,E22<=81)*58.06+AND(E22>=82,E22<=87)*62+AND(E22>=88,E22<=93)*65.94+AND(E22>=94,E22<=99)*69.88+AND(E22>=100,E22<=105)*73.82+AND(E22>=106,E22<=111)*77.76","v":{"$error":"#N/A"}},null,{"$f":"IF(E22>0,E22<=6)*11.1+AND(E22>=7,E22<=12)*20.25+AND(E22>=13,E22<=21)*27.99+AND(E22>=22,E22<=27)*33.9+AND(E22>=28,E22<=33)*39.81+AND(E22>=34,E22<=39)*45.72+AND(E22>=40,E22<=45)*51.63+AND(E22>=46,E22<=51)*57.54+AND(E22>=52,E22<=57)*63.45+AND(E22>=58,E22<=63)*69.36+AND(E22>=64,E22<=69)*75.27+AND(E22>=70,E22<=75)*81.18+AND(E22>=76,E22<=81)*87.09+AND(E22>=82,E22<=87)*93+AND(E22>=88,E22<=93)*98.91+AND(E22>=94,E22<=99)*104.82+AND(E22>=100,E22<=105)*110.73+AND(E22>=106,E22<=111)*116.64","v":{"$error":"#N/A"}}]
[null,"2°",null,null,{"$f":"LOOKUP(D23,Foglio3!B2:B1104,Foglio3!C2:C1104)","v":{"$error":"#N/A"}},null,{"$f":"IF(E23>0,E23<=6)*7.4+AND(E23>=7,E23<=12)*13.5+AND(E23>=13,E23<=21)*18.66+AND(E23>=22,E23<=27)*22.6+AND(E23>=28,E23<=33)*26.54+AND(E23>=34,E23<=39)*30.48+AND(E23>=40,E23<=45)*34.42+AND(E23>=46,E23<=51)*38.36+AND(E23>=52,E23<=57)*42.3+AND(E23>=58,E23<=63)*46.24+AND(E23>=64,E23<=69)*50.18+AND(E23>=70,E23<=75)*54.12+AND(E23>=76,E23<=81)*58.06+AND(E23>=82,E23<=87)*62+AND(E23>=88,E23<=93)*65.94+AND(E23>=94,E23<=99)*69.88+AND(E23>=100,E23<=105)*73.82+AND(E23>=106,E23<=111)*77.76","v":{"$error":"#N/A"}},null,{"$f":"IF(E23>0,E23<=6)*11.1+AND(E23>=7,E23<=12)*20.25+AND(E23>=13,E23<=21)*27.99+AND(E23>=22,E23<=27)*33.9+AND(E23>=28,E23<=33)*39.81+AND(E23>=34,E23<=39)*45.72+AND(E23>=40,E23<=45)*51.63+AND(E23>=46,E23<=51)*57.54+AND(E23>=52,E23<=57)*63.45+AND(E23>=58,E23<=63)*69.36+AND(E23>=64,E23<=69)*75.27+AND(E23>=70,E23<=75)*81.18+AND(E23>=76,E23<=81)*87.09+AND(E23>=82,E23<=87)*93+AND(E23>=88,E23<=93)*98.91+AND(E23>=94,E23<=99)*104.82+AND(E23>=100,E23<=105)*110.73+AND(E23>=106,E23<=111)*116.64","v":{"$error":"#N/A"}}]
[null,"3°",null,null,{"$f":"LOOKUP(D24,Foglio3!B2:B1104,Foglio3!C2:C1104)","v":{"$error":"#N/A"}},null,{"$error":"#N/A"},null,{"$error":"#N/A"}]
[null,"4°",null,null,{"$f":"LOOKUP(D25,Foglio3!B2:B1104,Foglio3!C2:C1104)","v":{"$error":"#N/A"}},null,{"$error":"#N/A"},null,{"$error":"#N/A"}]
[null,"5°",null,null,{"$f":"LOOKUP(D26,Foglio3!B2:B1104,Foglio3!C2:C1104)","v":{"$error":"#N/A"}},null,{"$error":"#N/A"},null,{"$error":"#N/A"}]
[null,"6°",null,null,{"$f":"LOOKUP(D27,Foglio3!B2:B1104,Foglio3!C2:C1104)","v":{"$error":"#N/A"}},null,{"$error":"#N/A"},null,{"$error":"#N/A"}]
[null,"7°",null,null,{"$f":"LOOKUP(D28,Foglio3!B2:B1104,Foglio3!C2:C1104)","v":{"$error":"#N/A"}},null,{"$error":"#N/A"},null,{"$error":"#N/A"}]
[null,"8°",null,null,{"$f":"LOOKUP(D29,Foglio3!B2:B1104,Foglio3!C2:C1104)","v":{"$error":"#N/A"}},null,{"$error":"#N/A"},null,{"$error":"#N/A"}]
[null,"9°",null,null,{"$f":"LOOKUP(D30,Foglio3!B2:B1104,Foglio3!C2:C1104)","v":{"$error":"#N/A"}},null,{"$error":"#N/A"},null,{"$error":"#N/A"}]
[null,"10°",null,null,{"$f":"LOOKUP(D31,Foglio3!B2:B1104,Foglio3!C2:C1104)","v":{"$error":"#N/A"}},null,{"$error":"#N/A"},null,{"$error":"#N/A"}]
[]
[]
[]
[]
[]
[null,null,"                     ❸ Inserire nelle celle sottostanti  direttamente il nome del comune che interessa o cercarlo nel menù a tendina a destra di ogni riga."]
["TRASFERTE*  ③",null,null,"**Per evitare errori selezionare sempre dal menù a tendina."]
[" COMUNI del Circondario"]
[null,"1°",null,null,{"$f":"LOOKUP(D40,Foglio4!B3:B59,Foglio4!E3:E59)","v":{"$error":"#N/A"}},null,{"$f":"IF(E40=20,\"18,66\")+IF(AND(E40>=22,E40<=27),\"22,60\")+IF(E40=32,\"26,54\")+IF(E40=34,\"30,48\")+IF(AND(E40>=40,E40<=45),34.42)+IF(E40=46,\"38,36\")+IF(E40=56,\"42,30\")+IF(AND(E40>=58,E40<=63),46.24)+IF(AND(E40>=64,E40<=69),50.18)+IF(AND(E40>=70,E40<=75),54.12)+IF(AND(E40>=76,E40<=81),58.06)+IF(AND(E40>=82,E40<=87),62)+IF(AND(E40>=88,E40<=93),65.94)+IF(AND(E40>=94,E40<=99),69.88)+IF(AND(E40>=100,E40<=105),73.82)+IF(E40=106,\"77,76\")+IF(E40=114,\"81,70\")+IF(E40=126,\"89,58\")+IF(E40=152,\"105,34\")+IF(E40=172,\"121,10\")+IF(E40=216,\"148,68\")","v":{"$error":"#N/A"}},null,{"$f":"IF(E40=20,\"27,99\")+IF(AND(E40>=22,E40<=27),\"33,90\")+IF(E40=32,\"39,81\")+IF(E40=34,\"45,72\")+IF(AND(E40>=40,E40<=45),51.63)+IF(E40=46,\"57,54\")+IF(E40=56,\"63,45\")+IF(AND(E40>=58,E40<=63),69.36)+IF(AND(E40>=64,E40<=69),75.27)+IF(AND(E40>=70,E40<=75),81.18)+IF(AND(E40>=76,E40<=81),87.09)+IF(AND(E40>=82,E40<=87),93)+IF(AND(E40>=88,E40<=93),98.91)+IF(AND(E40>=94,E40<=99),104.82)+IF(AND(E40>=100,E40<=105),110.73)+IF(E40=106,\"116,64\")+IF(E40=114,\"122,55\")+IF(E40=126,\"134,37\")+IF(E40=152,\"158,01\")+IF(E40=172,\"181,65\")+IF(E40=216,\"223,02\")","v":{"$error":"#N/A"}}]
[null,"2°",null,null,{"$f":"LOOKUP(D41,Foglio4!B3:B59,Foglio4!E3:E59)","v":{"$error":"#N/A"}},null,{"$f":"IF(E41=20,\"18,66\")+IF(AND(E41>=22,E41<=27),\"22,60\")+IF(E41=32,\"26,54\")+IF(E41=34,\"30,48\")+IF(AND(E41>=40,E41<=45),34.42)+IF(E41=46,\"38,36\")+IF(E41=56,\"42,30\")+IF(AND(E41>=58,E41<=63),46.24)+IF(AND(E41>=64,E41<=69),50.18)+IF(AND(E41>=70,E41<=75),54.12)+IF(AND(E41>=76,E41<=81),58.06)+IF(AND(E41>=82,E41<=87),62)+IF(AND(E41>=88,E41<=93),65.94)+IF(AND(E41>=94,E41<=99),69.88)+IF(AND(E41>=100,E41<=105),73.82)+IF(E41=106,\"77,76\")+IF(E41=114,\"81,70\")+IF(E41=126,\"89,58\")+IF(E41=152,\"105,34\")+IF(E41=172,\"121,10\")+IF(E41=216,\"148,68\")","v":{"$error":"#N/A"}},null,{"$f":"IF(E41=20,\"27,99\")+IF(AND(E41>=22,E41<=27),\"33,90\")+IF(E41=32,\"39,81\")+IF(E41=34,\"45,72\")+IF(AND(E41>=40,E41<=45),51.63)+IF(E41=46,\"57,54\")+IF(E41=56,\"63,45\")+IF(AND(E41>=58,E41<=63),69.36)+IF(AND(E41>=64,E41<=69),75.27)+IF(AND(E41>=70,E41<=75),81.18)+IF(AND(E41>=76,E41<=81),87.09)+IF(AND(E41>=82,E41<=87),93)+IF(AND(E41>=88,E41<=93),98.91)+IF(AND(E41>=94,E41<=99),104.82)+IF(AND(E41>=100,E41<=105),110.73)+IF(E41=106,\"116,64\")+IF(E41=114,\"122,55\")+IF(E41=126,\"134,37\")+IF(E41=152,\"158,01\")+IF(E41=172,\"181,65\")+IF(E41=216,\"223,02\")","v":{"$error":"#N/A"}}]
[null,"3°",null,null,{"$f":"LOOKUP(D42,Foglio4!B3:B59,Foglio4!E3:E59)","v":{"$error":"#N/A"}},null,{"$error":"#N/A"},null,{"$error":"#N/A"},null,null,null,null,null,null,6.71]
[null,"4°",null,null,{"$f":"LOOKUP(D43,Foglio4!B3:B59,Foglio4!E3:E59)","v":{"$error":"#N/A"}},null,{"$error":"#N/A"},null,{"$error":"#N/A"},null,null,null,null,null,null,50.04]
[null,"5°",null,null,{"$f":"LOOKUP(D44,Foglio4!B3:B59,Foglio4!E3:E59)","v":{"$error":"#N/A"}},null,{"$error":"#N/A"},null,{"$error":"#N/A"},null,null,null,null,null,null,5]
[]
[null,null,null,"10% TOT. TRASFERTE",null,null,{"$f":"SUMIF(G22:G44,\"<>#N/D\")*10%","v":0},null,{"$f":"SUMIF(I22:I44,\"<>#N/D\")*10%","v":0}]
[]
[null,null,null,"Deposito  del verbale in  cancelleria esecuzioni ",null,null,{"$f":"IF(G12>0,7.4)+IF(G12<0,0)","v":7.4},null,{"$f":"IF(I12>0,7.4)+IF(I12<0,0)","v":7.4}]
[null,null,null,"10% trasferta deposito ",null,null,{"$f":"IF(G48>0,0.74)+IF(G48<0,0)","v":0.74},null,{"$f":"IF(I48>0,0.74)+IF(I48<0,0)","v":0.74}]
[]
[]
[null,null,null,"TOTALE SPECIFICA* ⑥",null,null,{"$f":"SUMIF(G4:G50,\"<>#N/D\")","v":14.85},null,{"$f":"SUMIF(I4:I50,\"<>#N/D\")","v":18.209999999999997}]
[null,null,null,null,null,null,"senza urgenza",null,"urgente"]
[]
[]
["❻ Il totale della specifica è comprensivo della trasferta (€ 6,86) del deposito del verbale  di esecuzione  (rilascio- consegna- obbligo di fare o non fare)  in cancelleria esecuzioni ."]
["      Le somme residue potranno essere richieste entro 30 giorni dall'espletamento dell'atto, successivamente a tale data saranno devolute all'erario  giusto  DPR 1229/1959 "]
["       e art. 197 DPR 2002/115."]
["❻ Il totale della specifica può variare per ulteriori km effettivamente percorsi."]

{"sheet":"Foglio3","index":4,"n_rows":1104,"n_cols":4,"rows_kept":1104,"cut":false,"hidden":true,"merged":[]}
[]
["SV","ABBACURRENTE",30]
["VIA","ABBADU (DELL')",6,"A"]
["VIA","ABOZZI MICHELE",6]
["SV","ACCHETTAS",17]
["VIA","ADDIS FILIPPO",7]
["VIA","ADELASIA",5]
["VLE","ADUA",6]
["SV","AGLIADO'",26]
["VIC","AGNESA",6]
["VIA","AGRIFOGLIO (DELL')",12]
["VIA","AIMO MARCO ANTONIO GIUSTINO",12]
["VIA","ALAGON LEONARDO",6]
["VLE","ALBANI LUCIO",13]
["VIA","ALFIERI VITTORIO",8]
["VIA","ALGHERO",4]
["VIA","ALIVESI  GIOVANNI",5]
["TRV","ALIVESI GIOVANNI",5]
["VIA","ALIVIA GAVINO",6]
["VIA","ALLORO (DELL')",15]
["VIA","ALTARA EDINA",13]
["VIA","AMENDOLA GIOVANNI",3]
["VIA","AMSICORA",5]
["VIA","AMUNDSEN ROALD",15]
["VIA","ANFOSSI TOMASO PIETRO (OTTAVA)",24]
["CSO","ANGIOI GIO MARIA",4]
["VIA","ANGIUS VITTORIO",6]
["VIA","ANGLONA",8]
["SP  ","ANGLONA (DELL')",16]
["VIA","ANZIANO (DELL')",15]
["VIA","ARA SALVATORE",15]
["VIA","ARAOLLA GEROLAMO",6]
["VIA","ARBOREA",5]
["VIA","ARCIDIACONO ENRICO",14]
["VIA","ARCIVESCOVADO (DELL')",4]
["CAN ","ARCONE (BADDE REBUDDU)",34]
["VIA","ARDARA",9]
["VIA","ARDAU CANNAS BATTISTA (OTTAVA)",26]
["VIA","ARGENTIERA",65]
["VIA ","ARIANI GIOVANNI",16]
["VIA","ARIOSTO LUDOVICO",8]
["VIA","ARQUER SIGISMONDO",8]
["VIA ","ARTIGLIERIA",5]
["VIA","ARZACHENA ",44]
["VIA","ASPRONI GIORGIO",4]
["PZA","ASSUNTA (DELL') (PALMADULA)",88]
["VIA","ASTRONAUTI (DEGLI)",8]
["VIA","ATZENI F.LLI",13]
["VIA","AUZZAS",15]
["PZA","AZUNI DOMENICO ALBERTO",5]
["VIA","BACCHELLI RICCARDO (OTTAVA)",24,"B"]
["TRV","BACCHILEDDU",76]
["VIA","BACHELET VITTORIO",12]
["VIA","BACHELET VITTORIO - 1^ TRAVERSA",12]
["VIA","BACHELET VITTORIO - 2^ TRAVERSA",12]
["VIA","BACHELET VITTORIO - 3^ TRAVERSA",12]
["VIA","BACHELET VITTORIO - 4^ TRAVERSA",12]
["SV","BADDE ALIDERRU",16]
["SV  ","BADDE PEDROSA-SAN GIACOMO",20]
["SV","BADDE PEDROSA-TANIGA",20]
["SV","BADDE PERTUSU",20]
["SV","BADDE REBUDDU",34]
["VIA","BADDE TRIBIDE",50]
["SV","BADDE ULUMU",17]
["SV","BADDE ULUMU TRAVERSA",17]
["SV","BADDELONGA - 1^ TRAVERSA",28]
["SV","BADDELONGA - 2^ TRAVERSA",28]
["SV","BADDELONGA-RUSSEGLIA",28]
["SV","BADDI PEDROSA - TANIGHEDDU",14]
["SV","BADDIMANNA - FILIGHEDDU DAL 2 AL 40 E 1 AL 79",12]
["SV","BADDIMANNA - FILIGHEDDU DAL 42 ALLA FINE E 79 ALLA FINE",16]
["SV","BADDIMANNEDDA",16]
["VIA","BADESI ( (TOTTUBELLA)",46]
["VIA","BALDEDDA",12]
["SV","BALDEDDA-MONTE FURRU",18]
["VIA","BALDINCA",18]
["VIA","BALLERO ANTONIO (OTTAVA)",24]
["VIA","BANCALEDDU",20]
["VIA","BANCALEDDU - 1^TRAVERSA",20]
["VIA","BANCALEDDU - 2^TRAVERSA",20]
["SP","BANCALI",50]
["SV","BANCALI ABBACURRENTE",32]
["PZA","BANDE FRANCESCO",12]
["VIA","BARACCA FRANCESCO",6]
["SP","BARATZ  ",60]
["SV","BARATZ-MONTE PEDROSU",60]
["VIA","BARBAGIA",9]
["PTC","BARGONE CRISPO",5]
["VIA","BARISONE",6]
["VIA","BARONIA",10]
["VIA","BARORI DIEGU (OTTAVA)",24]
["VIA","BARTALI GINO",50]
["VIA","BARZINI LUIGI",10]
["VIA","BASSO LELIO",10]
["VIA","BATTISTI CESARE",5]
["SV","BATTORDOMOS",5]
["VIA","BAZZINITA (EX ARGENT.STR.G)(EX BALLAO)",106]
["PZA","BEATA VERGINE MARIA ASSUNTA",106]
["VIA","BELLAVISTA (ARGENTIERA)",106]
["VIA","BELLIENI VITTORIO",5]
["VIA","BELLINI VINCENZO",12]
["VIA","BENETUTTI (CAMPANEDDA)",60]
["VIA","BENTIVOGLIO PAOLO",4]
["VIC","BERLINGUER (DON) GIROLAMO",4]
["VIA ","BERLINGUER ENRICO",9]
["VIA","BERTINO ALESSANDRO",10]
["VIC","BERTOLINIS MATTEO",6]
["VIA","BERTOLOTTI ROSILDE (OTTAVA)",24]
["VIA","BESTA ENRICO",5]
["VIA","BIANCHI GUSTAVO",15]
["VIA","BIASI GIUSEPPE",7]
["VIA","BIDDAU (ARCHIVOLTO)",5]
["VIA","BINDA ALFREDO (LA CORTE)",76]
["VIA","BINNA LUIGI",7]
["VIA","BOGGIO BACHISIO",16]
["VIA","BOGINO G.B. LORENZO",6]
["VIA","BOLOGNA MARTINO",5]
["VIA","BONO ( EX LA PEDRAIA STR.B)",96]
["VIA","BONORVA",9]
["VIA","BOSA (CAMPANEDDA)",60]
["VIA","BOSCO CAPUCCIO (EX GIAGAMANNA STR. D)",8]
["VIA","BOTTEGO VITTORIO",16]
["PZA","BOTTEGO VITTORIO ",16]
["VIA","BOTTIDA (EX BIANCAREDDU STRADA B)",84]
["VIA","BOVE GIACOMO",16]
["VIA ","BOVET DANIEL",1]
["VIA","BRANCA REMO (EX OTTAVA STRADA D)",28]
["VIC","BRANCA SEBASTIANO",9]
["VIA ","BRIGATA SASSARI",4]
["VIA","BRUNO GIOVANNI",14]
["VIA","BUCCARI",7]
["VIA","BUDAPEST ",1]
["LGO","BUDAPEST ",1]
["VIA","BUDDI BUDDI DAL 2 AL 42 E 1 AL 15",16]
["VIA","BUDDI BUDDI DAL 44 ALLA FINE E 17 ALLA FINE",18]
["VIA","BUDDUSO' (EX VILLA ASSUNTA STR. B)",66]
["VIA","BUDRONI GIUSEPPE (MONS) EX VIA TINGARI TRONCO D",12]
["VIA","BUGERRU (EX ARGENTIERA STR.C)",80]
["VIA","BULTEI (EX LA PEDRAIA STR.C)",106]
["SV","BUNNARI NUOVO",10]
["SV","BUNNARI VECCHIO",10]
["VIA","BUONARROTI MICHELANGELO",6]
["VIA","BURGOS (EX LA PEDRAIA STR.D)",96]
["VIA","BUSONERA FLAVIO",14]
["SV","BUTTANGARI (LI)",16]
["VIA","CABOTO GIOVANNI",15,"C"]
["SV","CABU D'ISPIGA - S. FRANCESCO",10]
["VIA","CADAMOSTO ALVISE",15]
["PZA","CADUTI DEL LAVORO",3]
["SV","CAFFE' ROMA",15]
["VIA","CAGLIARI",5]
["VIA","CALANGIANUS",100]
["VIA","CALASSINI (ARGENTIERA EX STR.H)",100]
["VIA","CALAUNANO (EX STR. A)(EX VIA J.KERR)",100]
["VIA","CALVI SERGIO (EX BANCALI STR.D)",22]
["VIA","CALVIA POMPEO",4]
["VIA","CAMBONI PIETRO",15]
["VIC","CAMPANARO (DEL)",5]
["VIC","CAMPANE SAN DONATO",6]
["VIA","CAMPANEDDA",60]
["VIC","CAMPANILE (DEL)",6]
["VIA","CAMPIDANO",9]
["SV  ","CAMPU CHERVAGGIU",62]
["VIA","CAMPUS NINO",9]
["VIA","CANAGLIA",60]
["VIA","CANALIS PIETRO",5]
["VIA","CANEPA LUIGI",6]
["SS","CANIGA",9]
["VIA","CANIGA",7]
["SV","CANIGA-SAN GIORGIO",15]
["SV","CANIGA-SAN GIORGIO 1^ TRAVERSA",15]
["SV","CANIGA-SAN GIORGIO 2^ TRAVERSA",16]
["SV  ","CANIGA-SAN GIORGIO 3^ TRAVERSA",16]
["VIC","CANNE (DELLE)",6]
["VIA","CANO FRANCESCO",6]
["VIA","CANOPOLO ANTONIO",6]
["PZA ","CANTINA (EX VIA CARBONIA)",106]
["VIA","CAPO D'ORO",6]
["PZA","CAPPUCCINI",6]
["VIA","CAPRA GUASCONE",6]
["VLE","CAPRERA",7]
["VIA","CARBONAZZI GIOVANNI ANTONIO",6]
["LGO","CARBONI LEONARDO (DON)",4]
["VIA","CARBONI MARIO",16]
["VIA","CARBONIA (EX ARGENT.STR.E)(EX VIA VILLASALTO)     ",26]
["VIA","CARDUCCI GIOSUE'",8]
["VIA","CARGEGHE (CAMPANEDDA)",60]
["VIA","CARLO ALBERTO",4]
["VIA","CARLO FELICE DAL N. 1 AL 29 DAL 2 AL 6",6]
["VIA","CARMINE (AL) (AL CARMELO)",6]
["VIA","CARMINE (DEL) (ARCHIVOLTO)",6]
["VIA","CARRU CIRIACO",16]
["VIC","CARRUGGEDDU",4]
["VIA","CARSO",10]
["PZA","CARTA PAOLO (MONS)",10]
["VIA","CARUSO ENRICO",10]
["VIA","CASAGGIA MICHELANGELO",6]
["SV","CASAGIA",6]
["LGO","CASALABRIA FRANCESCO",6]
["SV","CASCETTA-FUNTANA VEGLINA",6]
["VIA ","CASSANI CLETO (MONS)",8]
["VIA","CASTAGNO (DEL)",10]
["PZA","CASTELLO",6]
["VIA","CASTELSARDO",8]
["VIA","CASTIGLIA GIUSEPPE",10]
["VIA","CASU PIETRO",7]
["VIA","CASULA ANTIOCO",7]
["VIA","CATALOCCHINO ALCEO",4]
["VIA","CATONI (F.LLI) (S.ORSOLA)",13]
["VIA","CATTA ANTONIO (EX BANCALI C)",22]
["VIA ","CAU F.LLI GIAMPIERO ED ANDREA",8]
["LGO","CAVALLOTTI FELICE",5]
["VIA","CAVOUR BENSO",4]
["VIA","CECCHI ANTONIO",15]
["VIA","CEDRINO",15]
["VIA","CENTO ASSEGNATARI (DEI)",44]
["VIA","CERVI ANNUNZIO",7]
["VIA","CESARACCIO ALDO",13]
["VIA","CETTI FRANCESCO",4]
["VIA","CHERCHI GAVINO",14]
["SV","CHERIGA MANNA",24]
["SV","CHERIGA MINORI",24]
["VIA","CHESSA GIACOMO",10]
["VIA","CHIARINI GIOVANNI",13]
["VIA","CHIRONI GIAN PIETRO",7]
["VIA","CIANCILLA DAMIANO",15]
["VIA","CIASCA RAFFAELE",9]
["VIC","CIBODDO",4]
["VIA","CICU ANTONIO",4]
["VIA","CILEA FRANCESCO",13]
["VIA","CILOCCO FRANCESCO",4]
["VIA","CIMA GAETANO (BADDIMANNA)",10]
["VIA","CISTO (DEL)",10]
["VIA","CIUSA FRANCESCO",8]
["VIA","CIVITAVECCHIA",5]
["VLE","COGHINAS",13]
["VIC","COGNO",4]
["VIA","COL DI LANA",4]
["VIA","COL DINO (CANIGA)",10]
["VIA","COLOMBO CRISTOFORO",15]
["PZA","COMUNE (DEL)",4]
["VIA","CONCAS ANTONIO",16]
["VIA","CONCE (DELLE)",4]
["TRV","CONCE DAU (DELLE)",4]
["TRV","CONCE S. MARIA (DELLE)",4]
["VIA","CONCE VECCHIE (DELLE)",4]
["PZA","CONTE DI MORIANA",5]
["VIA","CONTINI GAVINO (CANIGA)",9]
["VIA","CONTU ANSELMO (EX BANCALI STR.A)",24]
["VIA","COPENAGHEN",2]
["VIA","COPPI FAUSTO (LA CORTE)",76]
["VIA","COPPINO MICHELE",4]
["VIA","CORADDUZZA SALVATORE",7]
["VIA","CORBEZZOLI (DEI) (ARGENTIERA)",26]
["VIA","CORDEDDA ANDREA",2]
["VIA","CORDELLA MARIO (SANT'ORSOLA)",14]
["VIA","CORMORANI (DEI)(EX BARATZ STR.B)",80]
["VIA","CORSI (DEI)",5]
["VIA","CORTE LARGA",5]
["VIA","CORTE QUESADA",5]
["VIA","COSSEDDU AGOSTINO",14]
["VIA ","COSTA ENRICO",4]
["SV","COSTA PALONI",22]
["SV","COSTA PALONI (TRAVERSA)",24]
["VIA","COTTONI SALVATORE",8]
["SV","CRABULAZZI",15]
["SV","CRABULAZZI - TANIGA BRUSCO",20]
["SV","CRABULAZZI (TRAVERSA)",18]
["VIA","CRESPELLANI LUIGI (EX BANCALI STR.G)",26]
["VIA","CRISPATZU SEBASTIANO",8]
["VIA","CROCE BENEDETTO",3]
["VIA","CROCI (DELLE)",5]
["VIA","CROVETTI EDMONDO",15]
["VIA","CUGGIAREDDU",44]
["VIA","CUGIA EFISIO (S.ORSOLA)",15]
["VIA","CUGIOLU ANDREA (EX BANCALI STR.I)",52]
["PZA","CUORE IMMACOLATO",10]
["VIA","DA VERRAZZANO GIOVANNI",14,"D"]
["VIA","DA VINCI LEONARDO",10]
["VIA","D'ACQUISTO SALVO",15]
["VIA","DALMAZIA",8]
["VIA","D'ANNUNZIO GABRIELE",8]
["VLE","DANTE",6]
["PZA","D'ARMI",6]
["VIA","DAU SALVATORE",10]
["VIA ","DE ANDRE' FABRIZIO",10]
["VIA","DE CANDIA MARIO",14]
["VIA","DE CAROLIS MARIALISA",10]
["VIA","DE CUPIS ELIO(SAN GIOVANNI)",24]
["VIA","DE FALCOS PAOLO",14]
["VIA","DE FRAIA PROTO",14]
["VIA","DE GAMA VASCO",15]
["VIA","DE GASPERI ALCIDE",8]
["PZA","DE HONESTIS CAVALLINO",5]
["VIA","DE LUNA GAVINO",16]
["VIA","DE MAGISTRIS CASIMIRO (CANIGA)",10]
["VIA","DE MARTINI GIUSEPPE DAL N. 1 - 2 AL 199 - 138",22]
["VIA","DE MARTINI GIUSEPPE DAL N. 201 - 140 AL 251 - 242",26]
["VIA","DE MARTIS MARIO",8]
["VIA","DE MURO PAOLO",14]
["VIA","DE NICOLA ENRICO",2]
["VIA","DE ROSA GIUSEPPE",15]
["VIA","DE SENA GIOVANNI",13]
["VIA","DECIMARIO",5]
["VIC ","DEFFENU ATTILIO",4]
["VIA","DEL DRO' TONY (EX PZA SANT'ANTONIO VIC. CHIUSO B)",5]
["VIA","DELEDDA GRAZIA DAL N. 1 - 2 AL 100 - 111",8]
["VIA ","DELEDDA GRAZIA DAL N. 102 - 113 ALLA FINE ",10]
["VIA","DELITALA GIACOMO",8]
["VIA","DELITALA MARIO (EX OTTAVA STR.A)",26]
["VIA","DELLA LAVERIA (EX ARGENT. STR F)(EX GUSPINI)",26]
["SS","DELL'ANGLONA",15]
["VIA","DEMURO DOMENICO",14]
["VIA","DESSI' VINCENZO",8]
["VIA","DESSOLE TOMMASO",14]
["VIA","DESSY STANIS (EX OTTAVA STR.B)",26]
["PZA","DETTORI PAOLO",14]
["VIA","DEVILLA GIOVANNI MARIA",8]
["VIA","DEXART GIOVANNI",13]
["CSO","DI CASTELVI MARGHERITA",4]
["VIA","DI SAVOIA MARGHERITA",4]
["VIA","DI VITTORIO GIUSEPPE",9]
["VIA","DIANA ANTONIO (EX OTTAVA STR.DI CENSIM. N°1)",26]
["VIA","DIAZ ARMANDO",5]
["VIA","DOLCETTA GIULIO",5]
["VIA","DONIZETTI GAETANO",14]
["VIA","DORIA BRANCALEONE",13]
["VIA","D'OTTAVA (TRAVERSA)",24]
["PZA","DUCA DEGLI ABRUZZI",5]
["SP","DUE MARI DEI",74]
["PZA","DUOMO",4]
["VIA","DUOMO (AL)",4]
["VIC","DUOMO AL (VICOLO CHIUSO)",4]
["VIC","DUSSONI",4]
["VIA","EBA GIARA - FILIGHEDDU",10,"E"]
["VIA","EINAUDI LUIGI",4]
["VIA","EMILIA",7]
["VIA","ENZO",6]
["VIA ","ERA VITTORINO (TRA)                               ",14]
["VIA","ERA VITTORIO",14]
["SV","EREMITTU",80]
["VIA","EROI (DEGLI)",9]
["VIA","ESPERSON",4]
["VIA","ESPORLATU (EX BIANCAREDDU STR. C)",80]
["VIA","FADDA CARLO",8,"F"]
["VIA","FAIS ANGELO",10]
["VIA","FALCHI BATTISTA",14]
["VIA","FALCHI LUIGI",8]
["VIA","FANCELLO FRANCESCO",10]
["STT","FARA GIOVANNI FRANCESCO",5]
["VIA","FARINA GAVINO",5]
["VIA","FARINA SALVATORE",10]
["VIA","FENICOTTERI (DEI)(EX BARATZ STR.A)",80]
["VIA","FERMI CLAUDIO",5]
["VIA","FERRACCIU NICOLO'",10]
["VIA ","FERRUCCI GIOVANNI",5]
["VIA","FERTILIA (CAMPANEDDA)",44]
["VIA","FIGARI FILIPPO",10]
["VIA","FILIA DAMIANO",8]
["SV","FILIGHEDDU - BARCA",14]
["SV","FINAGLIOSU",74]
["VIA","FIORE (DEL)",4]
["VIA","FIORE BIANCO (DEL)",4]
["VIA","FIORE ROSSO (DEL)",5]
["PZA","FIORE VERDE (DEL)",4]
["PZA ","FIORI GIOVANNI",9]
["PZA","FIORI VITTORINO (DON)",12]
["PZA","FIUME",4]
["SP","FIUME SANTO",72]
["VIA","FLORINAS",8]
["VIA","FLORIS ANTONIO (LI PUNTI))",16]
["VIA","FLORIS CARMELO (BADDIMANNA)",9]
["VIA","FLUMENARGIA",7]
["VIA","FLUMENDOSA",15]
["VIA","FONTANA ALESSIO",5]
["SV","FONTANA-SETTE PALME",20]
["VIA","FORLANINI CARLO",7]
["PZA","FOSCOLO UGO",7]
["VIA","FOSSATI CARDINALE",3]
["VIA ","FRASSETTO FABIO",8]
["VIA","FRAU WALTER                                       ",9]
["VIC ","FRIGAGLIA",4]
["VIC","FRUMENTARIA",5]
["PZA","FRUMENTARIA (DELLA)",5]
["SV","FUNTANA DI COIBU",11]
["SV","FUNTANA DI COIBU - TRAVERSA",11]
["SV","FUNTANA DI LA FIGGA",13]
["SP","FUNTANA VEGLIINA",74]
["VIA","GABRIEL GAVINO (EX BANCALI STR.F)",24,"G"]
["VIA","GALASSI ANDREA",4]
["VIA ","GALILEI  GALILEO",3]
["VIA","GALLERI PAOLO",7]
["VIA","GALLURA",7]
["VIA","GAMBELLA",4]
["VIA","GARAVETTI FILIPPO",6]
["EMI","GARIBALDI GIUSEPPE",4]
["VIA","GARZIA RAFFA",6]
["VIA","GAZOMETRO",4]
["VIA","GELSOMINI (DEI)",8]
["VIA","GEMELLI FRANCESCO (OTTAVA)",24]
["VIA","GENNARGENTU",15]
["VIA","GENOVA",4]
["VIA","GERREI (EX LANDRIGGA STR. A)",18]
["VIA","GESSI ROMOLO",15]
["VIA ","GHERA",4]
["SV","GIACOBBE DINO",10]
["VIA","GIAGU",7]
["SV","GIAGUMONA",26]
["VIA","GIGLI BENIAMINO (EBA GIARA)",9]
["VIA","GINEPRO (DEL)(EX FILIGHEDDU STR.B)",16]
["VIA","GINESTRA (DELLA) EX FILIGHEDDU STR. E             ",16]
["VIA","GIOIA FLAVIO",15]
["SV","GIORDANO (TRAVERSA)",24]
["VIA","GIORDANO UMBERTO",15]
["VIA","GIOSCARI",3]
["VIA","GIOTTO",6]
["VIA","GIRARDENGO COSTANTE (EX LA CORTE STR.C)",54]
["VIA","GIUA RENZO",15]
["SV","GIUNCHEDDU",6]
["VIA","GIUSTI GIUSEPPE",8]
["VIA","GOCEANO",7]
["VIA","GODIMONDO",5]
["VIA","GOLDONI CARLO",7]
["VIA","GOLFO ARANCI (TOTTUBELLA)",40]
["VIA","GORIZIA",6]
["VIA","GRAMSCI ANTONIO                                   ",8]
["VIA","GRAN CONDOTTO",4]
["VIA","GREMI (DEI)",4]
["VIA","GRIFONI (DEI) (BARATZ)",68]
["VIA","GUARINO FRANCESCO",5]
["VIA","GUARNERIO ENEA",6]
["VIA","ILLORAI (EX LA PEDRAIA STR.A)",80,"I"]
["VIA","INFERMERIA SAN PIETRO",4]
["VIA","INSINUAZIONE (DELL')",4]
["VIA","IOSTO",5]
["VIA","ISABELLINE",4]
["VIC","ISABELLINE (VICOLO)",4]
["VIA","ISTRIA",7]
["VLE","ITALIA",3]
["PZA","ITALIA (D')",4]
["LGO","ITTIRI",4]
["VIA","KENNEDY JOHN FITZGERALD",15,"K"]
["VIA","KING MARTIN LUTHER",15]
["SV  ","LA COLTI - BIANCAREDDU",84,"L"]
["VIA","LA COLTI D'OLZAI (BIANCAREDDU)",84]
["VIA","LA CONA",4]
[null,"LA CORTE"]
["SV","LA CORTE - BACCHILEDDU",72]
["TRV","LA CORTE - CAMPANEDDA",72]
["SP","LA CRUCCA",28]
["SV","LA CRUCCA",28]
["SV","LA CRUCCA - BAIONA",28]
["SP","LA GINESTRA",70]
["SV","LA GRUZZITTA-7 FUNTANI",7]
["SV","LA GRUZZITTA-7 FUNTANI 1^TRAVERSA CHIGHIZZU",7]
["SV","LA GRUZZITTA-7 FUNTANI-2^ TRAVERSA CHIGHIZZU",7]
["SV","LA LANDRIGGA",16]
["VIA","LA MALFA UGO",6]
["SV","LA SERRA - LAMPIANU",84]
["VIA","LAGO DI BARATZ",15]
["VIA","LAMARMORA ALBERTO",5]
["VIA","LAMPIANU",84]
["SV","LAMPIANU (ST. VIC.)",84]
["VIA","LARICI (DEI)",78]
["VIA","LAVERIA (DELLA)",80]
["VIA","LAY LUCIO",16]
["VIA","LECCIO (DEL)",16]
["VIA","LEI-SPANO GIOMMARIA (EX BANCALI STR.M)",26]
["VIA","LENCI CARLO",14]
["VIA","LENTISCHIO (DEL)",16]
["VIA","LEONCAVALLO RUGGERO",15]
["VIA","LEONI ANTONIO (OTTAVA)",24]
["VIA","LEOPARDI GIACOMO",8]
["VIA","LEYLANDI (DEI)",80]
["SV","LI BUTTANGARI",12]
["SV","LI CADDUFFI",6]
["SV","LI CURUNEDDI",7]
["SV","LI GIOSI NOBI",12]
["SV","LI MUCCI",15]
["SV","LI MUCCI - 1^ TRAVERSA",14]
["VIA","LI ORI (CAMPANEDDA)",44]
["VIA","LI PANTAMAZZI",22]
["VIA","LI PIANI",72]
["SV","LI PUNTI",13]
["VIA","LI TRUMBETTI (LAMPIANU)",78]
["VIA","LIMBARA",15]
["VIA","LIMBUDU (OTTAVA)",24]
["VIA","LIVORNO",3]
["SV","LIZZOS",25]
["VIA","LOBINA BENVENUTO (SANT'ORSOLA)",15]
["SV","LODOSA",5]
["VIA","LOGUDORO",6]
["PZA","LOGULENTU",8]
["SV","LOGULENTU-BADDE TOLTA",16]
["VIC","LOMBARDI",4]
["VIA","LONDRA",1]
["LGO","LONDRA (LGO)",1]
["VIA","LONGOBARDO PRIMO",15]
["SV","LU BACHILI (LAMPIANU)",78]
["VIA","LU BAZZAMU",6]
["VIA","LU FANGAZZU",6]
["VIA","LU REGNU",3]
["SV","LU SALTU DI LA MONZA",22]
["SV","LU SALTU DI LU MARCHESI",20]
["SV","LU TRAINEDDU",8]
["VIA","LUNA E SOLE",7]
["VIA","LUSSU EMILIO",5]
["LGO","LUZZATTI LUIGI",4]
["LGO","MACAO",4,"M"]
["SV","MACCIA CRABILI",18]
["SV","MACCIA D'AGLIASTRU",14]
["SV","MACCIA D'AGLIASTRU- 1^ TRAVERSA",11]
["SV","MACCIA D'AGLIASTRU- 2^ TRAVERSA",11]
["SV","MACCIA D'AGLIASTRU- 3^ TRAVERSA",11]
["SV  ","MACCIA DI LA FABA",20]
["SV  ","MACCIA DI SPIGA",70]
["SV","MACCIA GULETTA",30]
["VIA","MACOMER (CAMPANEDDA)",60]
["VIA","MADDALENA",5]
["VIA","MADDALENA - VIC. CHIUSO A",5]
["VIA","MADDALENA - VIC. CHIUSO B",5]
["VIA","MADDALENEDDA",5]
["VIA","MADONNA DELLA MERCEDE",7]
["VIA","MADRE MARIA PAOLA PALMAS",6]
["VIA","MADRE TERESA DI CALCUTTA",15]
["VIA","MADRID",1]
["PZA","MAESTRI DEL LAVORO",7]
["VIA","MAGELLANO FERDINANDO",15]
["VIA","MAGNOLIE (DELLE)",9]
["SV","MALAFEDE",18]
["VLE","MALASPINA (DEI) (S:ORSOLA)",13]
["VIA","MAMELI GOFFREDO DAL 1 E 2 AL 45 E 56",8]
["VIA","MAMELI GOFFREDO DAL 47 E 58 ALLA FINE",8]
["VIA","MANCA DI MORES ETTORE",15]
["VIA","MANCA MAURO (OTTAVA)",28]
["VIA","MANCA PROTO GIANUARIO (LA CORTE)",90]
["VIA","MANCA SALVATORE",12]
["VIA","MANCA STANIS",8]
["VIA","MANCALEONI FLAMINIO",8]
["VIA","MANCHINU GAETANO",4]
["VIA","MANCINI PASQUALE STANISLAO",4]
["SV","MANDRA DI LA GIUA",12]
["SV","MANDRA DI L'AINU",16]
["SV","MANDRA DI L'AINU - 1^ TRAVERSA",16]
["VIA","MANDRA DI L'AINU - 2^ TRAVERSA",16]
["VIA","MANDROLISAI (LA LANDRIGGA)",15]
["VIA","MANINCHEDDA GIOVANNI",15]
["VIA","MANNO GIUSEPPE",4]
["VIA","MANUNTA CELESTINO",14]
["VIA","MANUNTA MANCA ANTONIO",6]
["VIA","MANZONI ALESSANDRO",9]
["SV","MARAGAZZA - LA SERRA",78]
["PZA","MARAGAZZA-LA CHINTANA",62]
["PZA","MARCHESE CAMILLO (ARGENTIERA)",80]
["SV","MARCHETTO",26]
["SV","MARCHETTO (TRAVERSA)",26]
["VIC","MARCHETTO (VIC.)",26]
["PZA","MARCONI GUGLIELMO",3]
["VIA","MARGHINE (DEL)",15]
["VIA","MARGHINOTTI GIOVANNI",8]
["VIA","MARGINESU PASQUALE (SANT'ORSOLA)",14]
["VIA","MARINI EFISIO",5]
["VIA","MARIOTTI GAETANO",10]
["VIA","MARMILLA",12]
["VIA","MAROGNA PIETRO",8]
["VIC","MARONGIU ANGELO",5]
["VIA","MARONGIU-DELRIO (MONS.)",8]
["VIA","MARRAS SALVATORE",8]
["VIA","MARSIGLIA",4]
["VIA","MARTIRI DELLE FOIBE",15]
["VIA","MASALA GIANNETTO",3]
["VIA","MASCAGNI PIETRO",10]
["SV","MASCARELLO",8]
["VIA","MASIA",6]
["VIA","MASIA GIOVANNI (MONS)",4]
["VIA","MASSAIA GUGLIELMO",13]
["VIC","MASSIDDA",5]
["VIA","MASTINO PIETRO",7]
["SV","MASTRU SANTU",12]
["VIA","MATTA GAVINO",6]
["VIA","MATTEOTTI GIACOMO",3]
["VIA","MAXIA CARMELO (OTTAVA)",24]
["VIA","MAZZINI GIUSEPPE",4]
["PZA","MAZZOTTI ARCANGELO (MONS)",5]
["VIA","MEDAGLIE D'ORO",15]
["VIA","MEILOGU",18]
["VIA","MELA",6]
["SV","MELA RUIA",22]
["SV","MELAGRANADDA (LA)",72]
["VIA ","MELEDINA WALTER LIBERO",12]
["VIA","MELIS GIOVANNI BATTISTA",7]
["VIA","MELONI FRANCO COSTANTINO",15]
["VIA","MELONI PIETRO MICHELE (EX VIA GONNESA)",80]
["PZA","MERCATO",6]
["VIC","MERCATO - VIC. CHIUSO C",6]
["VIC","MERCATO - VIC.CHIUSO A",6]
["VIA","MERCATO AL                                        ",6]
["VIC","MERCATO DEL",6]
["VIA","MEREU PEPPINO (CANIGA)",10]
["VIA","MERIDDA GIUSEPPE",14]
["PZA","MERIDIANA (DELLA)",9]
["VIA","MICCA PIETRO",7]
["VIA","MILANO",5]
["VIA","MILLE (DEI)",3]
["VIA","MILLELIRE DOMENICO",14]
["VIA","MIMOSE (DELLE)",8]
["VIA","MINATORI (DEI) (EX VIA NEBIDA)",80]
["VIA","MINIERA VECCHIA (EX V.CARBONIA)",80]
["VIA","MINZONI (DON)",3]
["VIA","MIRTO (DEL)",12]
["VIA","MOCCI SISINNIO",16]
["SS","MOLAFA'",9]
["SV","MOLAFA'-FUNTANA VEGLINA",16]
["VIA","MOLESCHOTT JACOPO",5]
["LGO","MOLINO A VENTO",4]
["LGO","MONACHE CAPPUCCINE",5]
["SV","MONSERRADU (DI)",2]
["VIA","MONSERRATO",2]
["SV","MONTALE'",20]
["VIA","MONTE AIRATU EX PORTO FERRO STRADA A",74]
["VIA","MONTE ALLEGRU",80]
["VIA","MONTE ATTENTU",7]
["SV","MONTE BIANCHINO",11]
["VIA","MONTE CASTEDDU (CAMPANEDDA)",48]
["SV  ","MONTE D'ACCODDI",28]
["SV","MONTE FIOCCA",13]
["SV","MONTE FIOCCA - TRONCO 'A'",13]
["SV","MONTE FIOCCA -TRONCO \"B\"",13]
["SV","MONTE FORTE",64]
["VIA","MONTE FURRU",10]
["SV","MONTE FURRU (TRAVERSA)",11]
["VIA","MONTE GRAPPA",3]
["SV","MONTE ORO",13]
["SV","MONTE ORO - 1^ TRAVERSA",13]
["SV","MONTE ORO - 2^ TRAVERSA",13]
["SV","MONTE ORO - 3^ TRAVERSA",13]
["SV","MONTE RASU",26]
["SV","MONTE REPOSU",70]
["VIA","MONTE SPADA",13]
["VIA","MONTE TIGNOSU",15]
["VIA","MONTE UCCARI",70]
["VIA","MONTE ZEBIO (EX GIAGAMANNA STR.A)",15]
["VIA","MONTELLO",15]
["VIA","MONTEPONI (EX ARGENTIERA STRADA B)",80]
["VIA","MONTEVECCHIO(EX CALAONANO .B-EX VIA LOGAN)",80]
["VIA","MONTEVERDI CLAUDIO",10]
["SV","MONTI DI JESGIA",14]
["SV","MONTI DI JESGIA - 1^ TRAVERSA",14]
["SV","MONTI DI JESGIA - 2^ TRAVERSA",14]
["SV","MONTI DI MANNU",7]
["VIA","MONTI VINCENZO",8]
["VIA","MONTIFERRO (EX LA LANDRIGGA STR.F)",18]
["VIA","MONTUREDDU",60]
["VIA","MORANDI RODOLFO",7]
["VIA","MORES",10]
["PZA","MORO ALDO",6]
["VIA","MOSCA",1]
["VIA","MOSCATELLO",6]
["VIA","MOSSA RENZO",6]
["VIA","MOTI ANTIFEUDALI (DEI)",5]
["VIA","MUCCIOLI VINCENZO",14]
["DSC","MULINEDDU",4]
["VIA","MUNDULA GIOACHINO",4]
["VIA","MUNIZIONE VECCHIA",5]
["SV","MUNTAGNA (LA)",80]
["SV","MUNTIGGIU DI L'OSSU",58]
["VIA","MURA ETTORE",14]
["VIA","MURAGLIE (DELLE)",6]
["VIC","MURENU MELCHIORRE VICOLO CHIUSO                   ",24]
["VIA","MURENU MELCHIORRE(OTTAVA)",24]
["VIC","MURESU FILIPPO (DON)",4]
["VIA","MURGIA DIEGO",6]
["VIA","MURONI FRANCESCO",4]
["VIA","MUROS",9]
["TRV","MURRUZZULU",20]
["SV","MURRUZZULU -  TRONCO \"A\"",20]
["SV","MURRUZZULU - TRONCO \"B\"",20]
["VIA","MUSINU GIUSEPPE (EX BANCALI STR. E)",24]
["PZA","MUSU MARTINI BASTIANINA",16]
["VIA","NAITANA SALVINO",5,"N"]
["VIA","NAPOLI",3]
["VIA","NAVIGATORI (DEI)",13]
["VIA","NAZZARI AMEDEO",10]
["VIA","NENNI PIETRO",8]
["VIA","NICOLODI AURELIO",6]
["SV","NIEDDAZZU",50]
["VIA","NIEDDU FRANCESCO",8]
["VIA","NIEVO IPPOLITO",8]
["VIA","NIGRA GIUSEPPE",15]
["VIA","NIVOLA COSTANTINO (EX OTTAVA STR. F)",28]
["VIA","NIZZA DAL 1 E 2 AL 19 E 22",5]
["VIA","NIZZAV DAL 21 E 24 ALLA FINE",5]
["VIA","NOBILE UMBERTO",10]
["VIA","NUGHEDU S. NICOLO' (EX VILLA ASSUNTA STR. D)",70]
["VIA","NULE (EX BIANCAREDDU STRADA A)",84]
["VIA","NULVI",9]
["VIA","NUORO",4]
["VIA","NURRA",8]
["TRV","NURRA (TRAVERSA)",8]
["VIA","OGGIANO RAFFAELLO (S.ORSOLA)",13,"O"]
["VIA","OGLIASTRA",7]
["VIA","OLBIA",4]
["VIA","OLEANDRI (DEGLI)",70]
["VIA","OLIVASTRI (DEGLI)",70]
["VIA","OLMEDO (CAMPANEDDA))",50]
["VIA","ONIDA VINCENZO",13]
["VIA","ORECCHIONI LUIGI",15]
["TRV","ORGANARI",5]
["VIA","ORGANARI (DEGLI)",5]
["VIA","ORIANI ALFREDO                                    ",7]
["PZA","OROSEI (TOTTUBELLA)",44]
["VIA","ORTOBENE (S.ORSOLA NORD)",13]
["VIA","OSCHIRI (EX VILLA ASSUNTA STR.C)",68]
["VIA","OSILO",8]
["VIA","OSLO",3]
["VIC","OSPEDALE MILITARE",5]
["VIA","OSPITONE",13]
["VIA","OSPIZIO CAPPUCCINI",6]
["VIA","OSSI",8]
["SS","OTTAVA",22]
["VIA","OZIERI",4]
["VIA ","PADRE COSTANTINO DEVILLA",15,"P"]
["VIA","PADRE FRANCESCO SOLINAS",8]
["VIA ","PADRE LUCA (CANIGA)",9]
["VIA","PADRE LUIGI DELIGIA (EX TANA DI LU MAZZONI TR.B) ",12]
["VIA ","PADRE MANZELLA",3]
["VIA","PADRE TADDEI",4]
["VIA","PADRE ZIRANO",4]
["VIA","PADULA ANDREA UGO",12]
["VIA","PAGANINI NICOLO'",12]
["VIA","PAGLIETTI MARIO",6]
["VIA","PAIS ETTORE",5]
["VIA","PALA DI CARRU                                     ",13]
["SV","PALA DI S. FRANCESCO",12]
["VIA","PALAU (TOTTUBELLA)",42]
["VIA","PALAZZI BERNARDINO (EX OTTAVA STR.H)",28]
["VIC","PALAZZO CIVICO",4]
["SP","PALMADULA",72]
["SP","PALMADULA",72]
["VIA","PALMAERA",6]
["VIA","PALMAS SALVATORE (CANIGA)",10]
["VIA","PALME (DELLE)",80]
["VIA","PAOLI PASQUALE",3]
["VIA","PAPA GIOVANNI XXIII",10]
["VIA","PARIGI",1]
["VIA","PARINI GIUSEPPE",8]
["VIA","PARODI EMILIO (MONS)",7]
["VIA","PASCA GIACOMO",12]
["VIA","PASCOLI GIOVANNI",7]
["VIA","PASELLA WALTER",14]
["VIA","PASTORE GIULIO",7]
["VIA","PASUBIO",6]
["VIA","PATTADA (EX VILLA ASSUNTA STR.A)",68]
["VIA","PAVESE CESARE",7]
["LGO","PAZZOLA",5]
["SC","PEDRAIA (LA)",90]
["VIA","PEDRU MAZZA (CANIGA)",9]
["VIA","PERANTONI SATTA GAVINO",6]
["PZA","PEROSI LORENZO",11]
["VIA","PERTINI SANDRO",12]
["VIA","PES (DON) GAVINO",6]
["VIC","PESCHERIA (E LARGO)",6]
["VIA","PETTENADU",6]
["VIA","PIAN DE SORRES",32]
["VIA","PIANDANNA",5]
["SV","PIANDANNA - GIOSCARI",8]
["SV","PIANDANNA - MOLAFA'",8]
["SV","PIANU DI TRABI",16]
["VIA","PIAVE",6]
["VIA","PIERONI ORESTE",36]
["VIA","PIGA ANTONIO (MONS)",7]
["VIA","PIGAFETTA ANTONIO",13]
["VIA","PIGLIARU ANTONIO",9]
["VIC","PIGOZZI",6]
["SV","PIMPINELLA (LA)",80]
["VIA","PINI (DEI) (CAMPANEDDA)",48]
["VIA","PINNA DIEGO",5]
["VIA","PINNA GAVINO",12]
["VIA","PINNA PARPAGLIA PIETRO (GEN.)",12]
["VIA","PIOPPI (DEI)",78]
["VIA","PIRA MICHELANGELO (EX BANCALI STR.B)",24]
["VIA","PIRANDELLO LUIGI",8]
["VIA","PIRAS LUIGI (CANIGA)",10]
["VIA","PIRAS NICOLO'",14]
["SV","PISCADURA",40]
["SV","PISCHINA RUIA",17]
["VIA","PISURZI PIETRO (OTTAVA)",24]
["VIA","PITOSFORI (DEI)",80]
["VIA ","PITTALIS GAVINO",5]
["VIA","PITTALIS GIOVANNI (PROF.)",7]
["PZA","PITTALIS GIUSEPPE (DON)",50]
["VIA","PITTALIS-PINNA MARIO",15]
["SV","PITTIRICCU",30]
["VIA","PLANARGIA",8]
["VIA","PLATA (LA)",84]
["SC","PLATAMONA",30]
["VIA ","PLOAGHE",8]
["VIA","PODDIGHE SALVATORE (EX VIA TINGARI TRONCO C)",8]
["VIA","POLA",6]
["VIA","POLANO LUIGI",8]
["VIA","POLIGONO",8]
["VIA","POLITEAMA",5]
["VIA","POLO MARCO",13]
["SV","PONTE BRANDINU-FUNTANA NIEDDA",20]
["SV","PONTE BRANDINU-FUNTANA NIEDDA -1^ TRAVERSA",22]
["SV","PONTE BRANDINU-FUNTANA NIEDDA -2^ TRAVERSA",22]
["SV","PONTE SECCO",34]
["VIA","PONZI GIUSEPPE (EX BANCALI STR.L)",24]
["VIA","PORCELLANA FRANCESCO",4]
["VIA","PORCHEDDU GINO (MONS)",6]
["VIA","PORCHEDDU GIOVANNI ANTONIO",5]
["PZA","PORRINO ELIO",7]
["LGO","PORTA NUOVA",4]
["LGO","PORTA UTZERI",4]
["SP  ","PORTO FERRO",74]
["VLE","PORTO TORRES ",11]
["SV","POZZO D'ESSE",60]
["LGO","POZZO DI VILLA",5]
["SV","POZZO D'USSI",50]
["VIA","POZZO PODESTA'(EX ARGENT.STR.H)(EX CARBONIA)",40]
["VIA","POZZOMAGGIORE",9]
["VIA","PRATI GIOVANNI",9]
["VIA","PREDDA NIEDDA  ",9]
["VIA","PRINCIPE DI PIEMONTE",3]
["VIA","PRINCIPESSA IOLANDA DAL 1 E 2 AL 71 E 48",6]
["VIA","PRINCIPESSA IOLANDA DAL 73 E 50 ALLA FINE",6]
["VIA","PRINCIPESSA MAFALDA",2]
["VIA","PRINCIPESSA MARIA",2]
["VIA","PRUNIZZEDDA",7]
["SV","PRUNIZZEDDA - SERRA SECCA",11]
["SV","PRUNIZZEDDA SERRA SECCA",9]
["PZA","PUCCINI GIACOMO",12]
["SC","PUDDIGHINU",70]
["VIA","PUGGIONI LUIGI BATTISTA",8]
["VIA","PULLI GIOVANNI ORONZO",6]
["VIA","QUADRATO FRASSO",4,"Q"]
["VIA","QUARTIERE VECCHIO",5]
["VIA","QUARTO",4]
["VIA","QUASIMODO SALVATORE",7]
["VIA","QUATTRO NOVEMBRE",4]
["VIA","QUERCE (DELLE)",90]
["VIA","RAMAI",5,"R"]
["VIA","RAMUSIO GIOVANNI BATTISTA",13]
["VIA","REGOLI",7]
["VIA","REPUBBLICA ROMANA",4]
["VIA","RICCIO MEDARDO",8]
["VIA","RICCIO MIRIAM (S. ORSOLA)",13]
["SV","RIO D'OTTAVA",24]
["VIA","RISORGIMENTO",4]
["VIA","RIZZEDDU",3]
["SV","RIZZEDDU - GIOSCARI",4]
["VIA","ROCKEFELLER",1]
["SV","RODDA QUADDA",8]
["VIA","ROLANDO",5]
["VIA","ROMA",5]
["VIA","ROMA VIC. CHIUSO A",5]
["VIA","ROMANGIA",7]
["VIA","ROMITA GIUSEPPE",7]
["PZA","ROSARIO",5]
["SV","ROSARIO (DEL)",22]
["VIA","ROSE (DELLE)",5]
["VIA","ROSELLO (AL)",5]
["VIA","ROSMARINI (DEI)",90]
["VIA","ROSSELLI (F.LLI)",2]
["PZA","ROSSINI GIOACCHINO",11]
["VIA","ROTH ANGELO",7]
["VIA","ROVASIO ANNIBALE (OTTAVA)",26]
["VIA","RUBATTU LORENZO",12]
["SP","RUDAS",40]
["VIA","RUFFILLI ROBERTO",9]
["VIA","RUGGIU CARLO",8]
["VIA","RUIU ANTONINO",14]
["PZA","RUIU SALVATORE",3]
["PZA","RUIU SORO GIOV. MARIA (DON)",44]
["VIA","RUMANEDDA",44]
["SV","RUNCU",20]
["SV","RUSSEGLIA",26]
["SV","RUSSEGLIA (TRAVERSA)",26]
["VIA","SABA AGOSTINO (MONS.)",3,"S"]
["VIA","SABA MICHELE",8]
["SV","SACCHEDDU",44]
["PZA","SACRO CUORE",6]
["VIA","SAFFI AURELIO",5]
["VIA","SALE SALVATORE",3]
["VIA","SALICI (DEI)",78]
["VIA","SALVEMINI GAETANO",4]
["VIA","SAMBIGUCCI GAVINO",5]
["SV","SAN CAMILLO TRAVERSA",22]
["VIA","SAN CARLO",5]
["VIC","SAN CARLO",6]
["VIA","SAN CRISTOFORO",6]
["TRV","SAN CRISTOFORO",6]
["VIA","SAN DONATO",6]
["VIA","SAN DONATO VIC. CHIUSO A",6]
["VIA","SAN DONATO VIC. CHIUSO B",6]
["VLE","SAN FRANCESCO",7]
["SP  ","SAN GIACOMO SORSO",22]
["SV","SAN GIORGIO - GIAGUMONA TRAVERSA",13]
["SS","SAN GIOVANNI",16]
["SV","SAN GIOVANNI - LA PEDRAIA",92]
["PZA","SAN GIOVANNI (DON)",40]
["VIA","SAN JOSEMARIA ESCIVA' (DE BALANGUER)",6]
["VIC","SAN LEONARDO",5]
["VIC","SAN LORENZO",5]
["VIA","SAN PAOLO",5]
["PZA","SAN PAOLO (BIANCAREDDU)",84]
["SV","SAN PASQUALE",16]
["VLE","SAN PIETRO",3]
["PZA","SAN PIETRO",4]
["SV","SAN PIETRO DI TINGARI",2]
["SC","SAN PIETRO D'OTTAVA",17]
["SV","SAN QUIRICO",18]
["LGO","SAN SEBASTIANO",5]
["VIA","SAN SIMPLICIO",5]
["VIA","SAN SISTO",5]
["SV","SAN VIGLIANO",6]
["VIA","SANNA GIOVANNI ANTONIO",5]
["VIA","SANTA CATERINA",6]
["DSC","SANTA CROCE",4]
["SV","SANTA GIUSTA",66]
["PZA","SANTA MARIA",4]
["SV","SANTA MARIA DI LU GARDU",20]
["VIA","SANTA MARIA DOMENICA MAZZARELLO",10]
["VIA","SANTA TERESA DI GALLURA (TOTTUBELLA)",44]
["PZA","SANT'AGOSTINO",4]
["SV","SANT'ANATOLIA",11]
["SV","SANT'ANATOLIA 1° TRAVERSA",11]
["VIA","SANT'ANNA",3]
["PZA","SANT'ANTONIO",6]
["VIA","SANT'APOLLINARE",6]
["VIA","SANT'ELENA",5]
["VIA ","SANT'ELIGIO",4]
["VIA","SANT'ELISABETTA",4]
["VLE","SANT'ORSOLA",12]
["SV","SANT'ORSOLA ",12]
["SV","SANTU TETTARU",17]
["VIA","SANZIO RAFFAELLO",6]
["VIA","SARAGAT GIUSEPPE",9]
["VIA","SARCIDANO (EX LA LANDRIGGA STRADA D)",13]
["VIA","SARDEGNA",3]
["VIA","SARI RAFAEL (CANIGA)",9]
["VIA","SARIPPA BROTTU (OTTAVA)",24]
["SS","SASSARI OSILO",11]
["VIC","SASSU",5]
["VIA","SATTA BRANCA PIETRO",6]
["VIA","SATTA SEBASTIANO",6]
["PZA","SAURO NAZARIO",6]
["VIA","SAVOIA",8]
["VIA ","SAVONA",4]
["SV","SCALA DI GIOSCARI",3]
["SC","SCALA DI LU PINTORI",16]
["SP","SCALA ERRE",80]
["VIA","SCALA MALA",5]
["SV","SCALA MALA",14]
["VIA","SCANO ANTONIO",6]
["SV","SCARDACCIU",6]
["VIA","SECHI ANTONIO LEONARDO (OTTAVA)",28]
["VIA","SECHI EUFEMIA (S.ORSOLA )",14]
["VIC","SECHI PAOLO",6]
["VIA ","SEDILO",5]
["SV","SEGASIDDA MANNA",22]
["SV  ","SEGASIDDA MINORI",22]
["PZA","SEGNI ANTONIO",7]
["VIA","SEMINARIO VECCHIO",5]
["LGO","SEMINARIO VECCHIO (DEL)",4]
["VIA","SENNORI",8]
["SV","SERRA DI LIONI",24]
["PZA","SERRA GAVINO (COL)",6]
["SP","SERRA LARGA",70]
["SV","SERRA NIEDDA",6]
["SV","SERRA SECCA - BUNNARI",11]
["SV","SERRA SECCA - DON LORENZO",7]
["LGO","SERRADIMIGNI ROBERTA",14]
["VIA","SETTE COMUNI(EX GIAGAMANNA STRADA C)",8]
["VIA","SETTE FRATELLI",8]
["VIA","SETTE FRATELLI 1° E 2° TRAVERSA",8]
["VIA","SETTEMBRINI LUIGI",2]
["VLE","SICILIA",6]
["VIA","SIENI GUIDO",9]
["VIA","SIGLIENTI STEFANO",6]
["VIA","SILIGO (CAMPANEDDA)",60]
["VIA","SILKI",3]
["VIA","SIMON ITALO",5]
["VIA","SIMULA GIOVANNI MARIA (EX S. GIOVANNI STR. B)",18]
["VIA","SINI TARQUINIO",11]
["VIA","SIOTTO PINTOR (F.LLI)",13]
["VIA","SIRONI MARIO",7]
["VIC","SISCO ANTONIO",5]
["LGO","SISINI",5]
["VIA","SOLARI LUIGI",15]
["VIA","SORO PIRINO GAVINO",9]
["VIA","SORSO",7]
["SP","SORSO LI PIDRIAZZI",30]
["SV","SOS LACCHEDDOS",13]
["VIA","SOS MONUMENTOS",42]
["VIA","SOTGIA GIORGIO",6]
["VIA","SPADA COSTANTINO",15]
["VIA","SPANO GIOVANNI",5]
["VIA","SPANU SATTA FRANCESCO (S.ORSOLA)",14]
["SV","SPINA SANTA PULTIGALI",28]
["VIA","SPINOLA AMBROGIO",15]
["SV","STAGNO DI PILO",70]
["PZA","STAZIONE",5]
["VIA ","STEFANELLI ROBERTO",36]
["VIA","STINTINO",5]
[null,"STRADARIO SASSARI","DISTANZA km    A/R"]
["VIA","STURZO (DON) LUIGI (VIADOTTO)",10]
["VIA","SULCIS",9]
["VIC","SULIS VINCENZO",4]
["VIA","TAMERICI (DEI)",80,"T"]
["VIA ","TANA DI LU MAZZONI TRONCO A",15]
["SV","TANCA DI MONSIGNORI",7]
["VIA","TANDA AUSONIO (EX BANCALI STRADA H)",24]
["SV","TANIGA (TRAVERSA)",14]
["SV","TANIGA BALDELLA",15]
["SV","TANIGA SAN GIACOMO MEDAS",19]
["SV","TANIGHEDDA",19]
["VIA","TARAMELLI ANTONIO",7]
["VIA","TAVOLARA EUGENIO",4]
["VIA","TEMPIO",4]
["VIA","THIESI",9]
["SV","TIGNONI-MONTI MINUDDU",18]
["VIA","TINGARI (EX VIA TINGARI TRONCO A)  ",2]
["TRV","TINGARI 1° E 2° TRAVERSA",2]
["VIA","TINTORETTO",6]
["SV","TIRIBBA (LA)",18]
["VIA","TIRSO",15]
["VIA ","TISSI",8]
["VIA ","TOGLIATTI PALMIRO",8]
["PZA","TOLA EFISIO PASQUALE",6]
["VIA","TOLA LUIGI (EX VIA TINGARI TRONCO B)",1]
["VIA","TORINO",5]
["VIA","TORRALBA",9]
["VIA","TORRE (DELLA)                                     ",35]
["VIA","TORRE TONDA",5]
["VIA","TORRES",5]
["PZA","TOSCANINI ARTURO",14]
["VIA","TRE MONTI (EX GIAGAMANNA STRADA B)",7]
["VLE","TRENTO",7]
["VLE","TRIESTE",7]
["VIA","TRINCEA DELLE FRASCHE (EX GIAGAMANNA STR. E)",8]
["CSO","TRINITA' (DELLA)",6]
["SV","TROPPU ILDE",10]
["SV","TRUNCONI",6]
["SV","TRUNCONI TRONCO A E TRONCO B",6]
["VIA","TUCCONI SALVATORE (OTTAVA)",26]
["VIA","TURATI FILIPPO",1]
["VIA","TURRITANA",5]
["VIA","TUVERI GIOVANNI BATTISTA",8]
["VIA","ULIVETI (DEGLI)",44,"U"]
["VIA","ULIVO (DELL') (EX FILIGHEDDU STR. A)",11]
["VIA","UMANA GIUSEPPE",6]
["VLE","UMBERTO I° DAL 1 E 2 AL 49 E 46",7]
["VLE","UMBERTO I° DAL 51 E 48 ALLA FINE",7]
["VIA","UNGARETTI GIUSEPPE",8]
["VIA","UNIVERSITA'",5]
["PZA","UNIVERSITA' (DELL')",5]
["VIA","USAI",6]
["VIA","USINI",8]
["VIA","USODIMARE ANTONIO                                 ",15]
["TRV","VAGLIO ( DEL )",5,"V"]
["LGO","VAGLIO ( DEL )",5]
["SLT","VAGLIO ( DEL )",5]
["SV","VALLE DEI CICLAMINI",6]
["VIA","VALLE GARDONA",3]
["VIA","VALLERO STEFANO",10]
["VIA","VARDABASSO SILVIO",7]
["VIA","VECELLIO TIZIANO",6]
["VIA","VENEZIA",3]
["VIA","VENTICINQUE APRILE",5]
["VIA","VENTIQUATTRO MAGGIO",7]
["VIA","VERONA",3]
["VIA ","VERONESE",6]
["VIA","VESPUCCI AMERIGO",15]
["CSO","VICO FRANCESCO",5]
["VIA","VIENNA",2]
["SV","VIGLIANO ADDIS",70]
["VIA","VIGNE (DELLE)",80]
["VIC","VIOLA",6]
["VIA","VIRDIS SEBASTIANO",14]
["CSO","VITTORIO EMANUELE II",5]
["VIA","VITTORIO VENETO",7]
["VIA","VIVALDI (F.LLI)",15]
["VIA","VIZILIU",19]
["VIA ","VOLONTE' GIANMARIA",9]
["VIA ","WAGNER MAX LEOPOLD",6,"W"]
["VIA ","WASHINGTON",1]
["VIA","XXIV MAGGIO",7,"X"]
["VIA","XXV APRILE",5]
["VIA","ZANETTI GINEVRA",8,"Z"]
["VIA","ZANFARINO MAURIZIO",5]
["VIA","ZARA",8]
["SV","ZENTU FIGGHI",6]
["SV","ZINZIODDA LI BUTTANGARI",20]
["VIA","ZIRANO PADRE",2]
["VIA","ZIROTTU A. V. (A. SABA) (EX BANCALI STR. N)",14]
["SV","ZIRRA - S. M. LA PALMA",60]
["TRV","ZIRULIA",6]
["VIA","ZIU CESARU",5]
["VIA","ZIU REMUNDU (OTTAVA)",26]
["VIA","ZIU SANTONA",40]
["VIA","ZUARI",17]
["VIA","ZUCCA ANTONIO",7]
["SS",null,8]

{"sheet":"Foglio5","index":5,"n_rows":31,"n_cols":11,"rows_kept":31,"cut":false,"hidden":false,"merged":[[0,0,0,9],[0,10,0,14],[1,10,1,14]]}
["                                                  ZONE TARIFFARIE INTERNAZIONALI",null,null,null,null,null,null,null,null,null,"RITORNA A SPECIFICA NOTIFICHE"]
[null,null,null,null,null,null,null,null,null,null,"                         RITORNA A SPECIFICA ESECUZIONI"]
["ZONA 1 ","EUROPA    -   BACINO DEL MEDITERRANEO"]
["Albania, Andorra, Austria, Belgio, Bielorussia, Bosnia-Erzegovina,Bulgaria, Cipro, Croazia, Danimarca, Estonia, Filandia, Francia, Gemania, Gibilterra, Gran Bretagna, "]
["Grecia, Irlanda, Islanda, Kosovo, Lettonia, Liechtenstein, Lituania, Lussemburgo, Macedonia, Malta, Moldavia, Monaco, Montenegro, Norvegia, Olanda, Polonia"]
["Portogallo, Repubblica Ceca, Romania, Russia, Serbia, Slovacchia, Slovenia, Spagna, Svezia, Svizzera, Turchia, Ucraina, Ungheria"]
[]
["Algeria, Egitto, Giordania, Israele, Libano, Marocco, Siria, Tunisia"]
[]
["SAN MARINO - VATICANO"]
[]
["ZONA 2","Altri paesi dell'AFRICA      AMERICHE, ASIA"]
["Angola, Ascensio-Isole (UK), Benin, Botswana, Burkina Faso, Burundi, Camerun, Capo Verde, Ciad, Comore, Costa d'Avorio, Eritrea, Etiopia, Gabon, Gambia, Ghana"]
["Gibuli, Guinea, Guinea Bissau, Kenya, Lesotho, Liberia, Madagascar, Malawl, Mali, Mauritania, Mauitius, Mozambico, Namibia, Niger, Nigeria, Rep. Centrafricana"]
["Rep. Dem. Del Congo, Reunion (isole), Ruanda, Sant'Elena (Isola), Sao Tome&Principe, Senegal, Seychelles, Sierra Leone, Somalia, Sud Africa, Sudan, Swaziland"]
["Tanzania, Togo, Tristan Da Chnha, Uganda, Zambia, Zimbabwe"]
[]
["Antigua&Barbuda, Argentina, Aruba, Bahamas, Barbados, Belize, Bermuda, Bolivia, Brasile, Canada, Cayman Isole, Cile, Colombia, Costa Rica, Cuba, Dominica"]
["Ecuador, El Salvador, Falklands (Isole), Giamaica, Grenada, Groelandia, Guadalupa, Guantanamo Bay, Guatemala, Guyana, Guyana (Francese), Haiti, Honduras"]
["Martinica, Messico, Midway, Montserrat, Nicaragua, Panama, Paraguay, Peru, Porto Rico, Repubblica Dominicana, Saint Kitts Ande Nevis (Saint Christopher)"]
["Saint Pierre&Miquelon, Saint Vincent (E Granadines), Stati Uniti, Suriname, Trinidad&Tobago, Turks And Caicos (Isole), Uruguay, Venezuela, Vergini (Isole)"]
["Br. Vergini (Isole), USA"]
[]
["Afghanistan, Aurabia Saudita, Armenia, Azerbaidjan, Bangladesh, Bhutan, Brunei, Cambogia, Cina, Corea Del Nord - Rep. Dem, Corea Del Sud, Emirati Arabi Uniti"]
["Filippine, Georgia, Giappone, Hong Kong, India, Indonesia, Iran, Kazakistan, Kirghizistan, Kuwait, Laos, Maldive, Malesia, Mongolia, Myanmar Burnma (Birmania)"]
["Nepal, Oman, Qatar, Singapore, Sri Lanka, Tagikistan, Taiwan, Thailandia, Timor Orientale (Est), Turkmenistan, Uzbekista, Vietnam"]
[]
["ZONA 3","OCEANIA"]
["Australia, Christmas (Isole), Cook (Isole), Fanning (Isole), Fiji (Isole), Guam, Kiriball, Marshall (Isole), Nauru, Nuova Caledonia, Nuova Zelanda, Palau, Papua Nuova"]
["Gunea, Phoenix, Pilcairn, Polinesia (Francese), Salpan (Isole Marianne), Salomone (Isole), Samoa (Americane), Samoa (Western), Santa Croce, Tonga (Isole)"]
["Tuvalu, Vanuatu, Wake"]

{"sheet":"Foglio4","index":6,"n_rows":59,"n_cols":5,"rows_kept":59,"cut":false,"hidden":true,"merged":[]}
[]
[]
[null,"ALA DEI SARDI",null,null,172]
[null,"ALGHERO",null,null,74]
[null,"ARDARA",null,null,64]
[null,"BANARI",null,null,62]
[null,"BESSUDE",null,null,64]
[null,"BONNANARO",null,null,68]
[null,"BONORVA",null,null,100]
[null,"BORUTTA",null,null,72]
[null,"BUDDUSO",null,null,152]
[null,"BULZI",null,null,88]
[null,"CARGEGHE",null,null,26]
[null,"CASTELSARDO",null,null,66]
[null,"CHEREMULE",null,null,78]
[null,"CHIARAMONTI",null,null,72]
[null,"CODRONGIANOS",null,null,32]
[null,"COSSOINE",null,null,94]
[null,"FLORINAS",null,null,34]
[null,"GIAVE",null,null,90]
[null,"ITTIREDDU",null,null,94]
[null,"ITTIRI",null,null,42]
[null,"LAERRU",null,null,88]
[null,"MARA",null,null,100]
[null,"MARTIS",null,null,76]
[null,"MONTELEONE ROCCA DORIA",null,null,84]
[null,"MORES",null,null,76]
[null,"MUROS",null,null,24]
[null,"NUGHEDU SAN NICOLO'",null,null,106]
[null,"NULVI",null,null,62]
[null,"OLMEDO",null,null,46]
[null,"OSCHIRI",null,null,114]
[null,"OSILO",null,null,24]
[null,"OSSI",null,null,20]
[null,"OZIERI",null,null,96]
[null,"PADRIA",null,null,104]
[null,"PADRU",null,null,216]
[null,"PATTADA",null,null,126]
[null,"PLOAGHE",null,null,44]
[null,"PORTO TORRES",null,null,40]
[null,"POZZOMAGGIORE",null,null,106]
[null,"PUTIFIGARI",null,null,60]
[null,"ROMANA",null,null,72]
[null,"S. M. COGHINAS",null,null,92]
[null,"SEDINI",null,null,84]
[null,"SEMESTENE",null,null,106]
[null,"SENNORI",null,null,22]
[null,"SILIGO",null,null,56]
[null,"SORSO",null,null,24]
[null,"STINTINO",null,null,94]
[null,"TERGU",null,null,68]
[null,"THIESI",null,null,72]
[null,"TISSI",null,null,22]
[null,"TORRALBA",null,null,72]
[null,"TULA",null,null,104]
[null,"URI",null,null,32]
[null,"USINI",null,null,22]
[null,"VALLEDORIA",null,null,86]
[null,"VILLANOVA MONTELEONE",null,null,78]